Workbook

Sheet CONTROL
Y1: =VLOOKUP(Code!G3,Y2:Y65,3,FALSE) ->  | AE1: 6
B2: INDEPENDENT SCHOOL FRAME FINANCIAL STATEMENT
Y3: 2221
B4: CONTROL WORKSHEET AND PRINTING | Y4: 2114
Y5: 1733
C6: Choose school here > | Y6: 1536
C8: School # | D8: =+Code!H3 -> 2338
Y9: 2102
B10: Correct the name, if you need here > | D10: =IF(D8="","",+Code!I79) -> Western Canada Hockey Academy | Y10: 1077
Y11: 2055
Y12: 1482
C13: Name of person inputting this file > | Y13: 1148
Y14: 1239
C15: Phone number > | Y15: 1157
Y16: 2284
Y17: 1315
Y18: 2230
Y19: 2151
C20: Set pages to print on Legal size paper (default setting - use for submission to SFB) | Y20: 2117
Y21: 1549
C22: Set pages to print on Letter size paper. | Y22: 1653
Y23: 1523
Y24: 2291
Y25: 1274
Y26: 1961
Y27: 1962
Y28: 2197
Y29: 1998
Y30: 1980
Y31: 1981
Y32: 1101
Y33: 1345
Y34: 2042
Y35: 1670
Y36: 2293
Y37: 2243
Y38: 2105
Y39: 1997
Y40: 1241
Y41: 1407
Y42: 1362
Y43: 1304
Y44: 2219
Y45: 1942
Y46: 2109
Y47: 1087
Y48: 1257
Y49: 1244
Y50: 1430
Y51: 1791
Y52: 1562
Y53: 1829
Y54: 1729
Y55: 1155
Y56: 1756
Y57: 1478
Y58: 1232
Y59: 1832
Y60: 1453
Y61: 1690
Y62: 1285
Y63: 1983
Y64: 1988
Y65: 1242
Y66: TOT

Sheet Contents
B1: =SCHOOLNAME -> Western Canada Hockey Academy
B2: AUDITOR'S REPORT AND FINANCIAL STATEMENTS
B3: TABLE OF CONTENTS
D4: PAGE
C5: LEGISLATIVE AUTHORITY / REQUIREMENTS | D5: i
C6: INSTRUCTIONS FOR THE COMPLETION OF THE FINANCIAL STATEMENTS | D6: ii
C7: AUDITOR'S REPORT | D7: 1
C8: AUDITOR'S SUPPLEMENTARY REPORT | D8: 2
C9: OPERATING FUND
C10: STATEMENT OF FINANCIAL POSITION | D10: 3
C11: STATEMENT OF SURPLUS (DEFICIT) | D11: 4
C12: STATEMENT OF OPERATIONS | D12: 5
C13: STATEMENT OF EXPENDITURES (by Function and by Object) | D13: 6
C14: SPECIAL EDUCATION SERVICES EXPENDITURE DETAIL (by Program) | D14: 7
C15: STATEMENT OF ALLOWABLE EXPENDITURES | D15: 8
C16: FULL TIME EQUIVALENT PERSONNEL EMPLOYED ( Unaudited) | D16: 9
C17: NOTES TO THE FINANCIAL STATEMENTS | D17: 10

Sheet Legislation
B1: Independent Schools
B3: Legislative Authority/Requirements
B5: In accordance with The Private Schools Grants Regulation 61/2012
B7: Auditor
B8: Each year, a private school shall appoint an auditor and advise the minister of the auditor’s name and address.
B9: If the auditor is the same as in the previous year, it is not necessary to advise the minister.
B11: The auditor must be a professional accountant who is a registered member in good standing of Chartered
B12: Professional Accountants, Manitoba.
B14: Annual Audit
B15: Each year, the auditor shall examine the financial affairs, books, accounts, records and transactions of the
B16: private school.
B18: Method of Audit
B19: An examination must be in accordance with Chartered Professional Accountants (CPA) Handbook-Assurance
B20: and must include a general review of the adequacy of the accounting procedures and system of internal control
B21: employed to preserve and protect the assets of the private school.
B23: Auditor’s Report
B24: The Auditor shall, not later than October 31 following the end of the school year, make a report to the private
B25: school on the annual financial statements examined by the auditor as at the close of the school year.
B28: Standards of the CPA | AW28: Standards of the CICA
B29: The Auditor's report | AW29: 41(11.2) | AX29: A report made under subsection (11) shall
B30: (a) | C30: comply with the standards of the Chartered Professional Accountants (CPA) Handbook-Assurance for an auditor's | AW30: (a) | AX30: comply with the standards of the Canadian Institute of Chartered Accountants for an auditor's
C31: standard report; and | AX31: standard report; and | BA31: Auditor’s Supplementary Report
B32: (b) | C32: include the auditor's opinion as to whether the financial statements present fairly the financial | AW32: (b) | AX32: include the auditor's opinion as to whether the financial statements present fairly the financial
C33: position of the school division as at the end of the preceding fiscal year and the results of its | AX33: position of the school division as at the end of the preceding fiscal year and the results of its | BA33: The auditor shall, not later than October 31 following the end of the school year, submit to the private school:
C34: operations for the preceding fiscal year, in accordance with accepted accounting principles for | AX34: operations for the preceding fiscal year, in accordance with accepted accounting principles for
C35: independent schools. | AX35: school divisions. | BA35: (a) | BB35: an Auditor's Report on Enrolment which shall state, whether, in the auditor’s opinion, the EIS Certification
BB36: and Enrolment Verification Report presents fairly in all material aspects the enrolment of the school
B37: Auditor's Supplementary Report | AW37: Auditor's Supplementary Report | BB37: as at September 30 in accordance with Part 1, Section 1.1 of the Independent Schools Funding Reporting
C38: The auditor shall submit to the school board a supplementary report on his or her examination of | AW38: 41(12) | AX38: The auditor shall submit to the school board a supplementary report on his or her examination of | BB38: Requirements.
C39: the annual financial statements and the report shall contain any information required by the regulations. | AW39: the annual financial statements and the report shall contain any information required by the regulations.
B40: Note | BA40: (b) | BB40: whether, in the course of their review there are any other issues to be included in the management letter.
C41: The report is to be comprised of the Auditor's Report on Enrolment as included in the financial statement file | AW41: Note: | AX41: The report is to be comprised of the Auditor's Report on Enrolment as included in the financial statement file provided by Schools' Finance Branch and the auditor's management letter. See Regulation 197/2009.
C42: provided by Education Finance Branch and the auditor's management letter. | BA42: Delivery of Copies
BA43: The auditor shall provide the minister with a copy of the Auditor's Report on Enrolment and the Management Letter.
B45: Note: The report of the auditor, The Auditor's Report on Enrolment and the Management Letter
B46: shall be signed by the Chairperson of the Private School, duly certifying that these reports have been
B47: presented to the Board, and the reports shall be submitted to the Minister in care of the Education Finance Branch.
B49: Financial Statement to the Minister
B50: Not later than October 31 following the end of the school year, a private school shall provide the minister with
B51: the duly audited financial statements in a form approved by the minister showing the revenues, expenditures
B52: and other financial information relating to the private school for the school year, and the financial position of
B53: the school at the end of the school year.
B55: The Public Sector Compensation Disclosure Act
B56: This Act requires public sector bodies, as defined in Section 1, to disclose to the public within six months
B57: after the end of each fiscal year ending on or after March 31, 1996, the name, position or classification, and
B58: compensation of individuals whose compensation, as defined in the Act, is $85,000 or more. A copy of the
B59: legislation (formerly Bill 57) was sent to the Chair of each funded independent school on November 13, 1996.
A61: * | B61: A copy of the disclosure schedule is to be sent to this office together with the audited financial statements.

Sheet INSTRUCTIONS
B2: TO PRINT, CLICK THE PRINTER ICON ON YOUR TOOLBAR (PRINTS 2 LETTER SIZE PAGES)
B4: INSTRUCTIONS FOR THE COMPLETION AND SUBMISSION OF FINANCIAL STATEMENTS
A6: 1) | B6: MACROS: For full functionality, set Excel to allow macros. To do this in Excel 2007 or later versions:
B7: Excel 2007: Click the Microsoft Office Button (upper left corner of your screen)
B8: At the bottom of the pop-up box, click the Excel Options button
B9: Excel 2010: Click the File tab (upper left corner of your screen)
B10: On the bottom of the side menu, click Options
B11: Then (same for both versions):
B12: Click TRUST CENTER on the side menu.
B13: Click the Trust Center Settings button on the right hand side and click Macro Settings on the next side menu.
B14: On the list of options under Macro Settings click Disable all macros with notification. Click OK.
B16: Before entering any data, save the file as (Save As) Excel 97-2003 Workbook (*.xls) or Excel Macro-Enabled Workbook (*.xlsm).
A18: 2) | B18: Round all reported amounts to the nearest dollar prior to data entry. If cents are entered, these will not be shown
B19: and may cause rounding errors in totals as well as "out of balance" or other error messages.
A21: 3) | B21: The Auditor's Report on Enrolment is included in a standard format and requires signoff on a hardcopy. Edits to the text are not allowed.
A24: 4) | B24: The management letter, Auditor's Supplementary Report and the Auditor's Report on Enrolment, must be signed
B25: and included in the submission to Education Funding Branch.
A27: 5) | B27: Once the Financial Statements have been completed, audited and approved by the school board, signed original documents should be forwarded directly to the Education Funding Branch by October 29, 2021. The completed file can be emailed to Education Funding Branch. Signed Reports and Notes do not need to be submitted electronically. Confirmation of receipt of the e-files will be sent via email.
B32: CONTACTS (to email, click links):
B33: Questions regarding the use of this file can be directed to:
B34: ( (204) 945-6910 +
B35: The completed file can be emailed to: +
B39: INTERNET DOWNLOADS:
B41: This file and other forms for reporting to Education Funding Branch are available on the Internet at the following address:
B42: http://www.edu.gov.mb.ca/k12/finance/forms/independent/index.html
B45: Independent Schools
B47: ="Instructions for the Completion of "&LASTYR&"/"&REPLACE(THISYR,1,2,"")&" Financial Statements" -> Instructions for the Completion of 2023/24 Financial Statements
B49: The Audited Financial Statements are required for the operating fund only, and are to include only financial
B50: information related directly to the independent school being funded.
B52: Operating Fund – Statement of Financial Position
B53: Department of Education
B54: Instruction and Services Grant
B55: This is the total Instruction and Services Grant for the current fiscal year.
B56: If the grant for the year is greater than the allowable expenditures for Instruction and Services as calculated
B57: on page 8, then the revenue recorded on page 5 and the receivable from the Province of Manitoba shown
B58: on the balance sheet must be shown reduced by the amount that the grant exceeds the allowable expenditures.
B60: Special Education Services Grant
B61: This includes the total of Level 2 and Level 3 Grants for the current fiscal year. If the total grant for the
B62: year is greater than the allowable expenditures for Special Education Services as calculated on page 8,
B63: then the revenue recorded on page 5 and the receivable from the Province of Manitoba shown on the
B64: balance sheet must be shown reduced by the amount that the grant exceeds the allowable expenditures.
B66: Curricular Materials Grant
B67: This includes the current year earned grant (i.e. the $60 per pupil grant paid directly to the school.
B69: Provincial Government - Other Support
B70: This includes any other support received from the Province of Manitoba. An appropriate description should be provided.
B72: Federal Government - French Language Grant
B73: This includes any support received for the grant.
B75: School Fees - Parental
B76: All school fees paid for by parents or legal guardians are to be recorded here.
B78: Expenditure Reporting
B80: With the implementation of Independent Schools' FRAME Report, it is imperative that reporting of expenditures be
B81: prepared on the basis of generally accepted accounting principles and in accordance with the FRAME system
B82: established by the department for use by funded independent schools.
B84: Please refer to the Independent Schools' FRAME Manual for expenditure reporting standards. The FRAME system
B85: provides a consistent structure for classifying school expenditures. However, certain aspects of the FRAME system
B86: may be subject to some interpretation. Please consult with the Independent Schools & Branch Accountant at the education Funding
B87: Branch for futher assistance.
B89: Statement of Allowable Expenditures
B91: The calculation of allowable expenditures must be completed by the school in accordance with the instructions, and any
B92: resulting reduction in grants is to be reflected in the current year financial statements through a decrease in appropriate
B93: revenues and a corresponding decrease in the receivable from the Province of Manitoba.
B95: Full Time Equivalent Personnel Employed
B97: In order to complete this form correctly, employee actual time worked is to be converted into full year equivalents, rounded
B98: to two decimal places. For example, an administrative assistant working three-quarter time all year is to be reported
B99: as 0.75 FTE.

Sheet Auditor Rpt
B3: AUDITOR'S REPORT
D4: =IF(ISBLANK(SCHOOLNAME),"",SCHOOLNAME) -> Western Canada Hockey Academy
B5: TO THE BOARD OF DIRECTORS OF
B7: We have audited the Operating Fund Balance Sheet of
B8: =D4 -> Western Canada Hockey Academy
B38: Date | D38: Auditor
B40: I hereby certify that this report and the statements referenced herein have been presented
B41: to the Board of Directors of the above referenced school and have been duly accepted
B42: and approved under minute number | F42: .
B44: Date | D44: Chairperson

Sheet Management Letter
B2: AUDITOR'S SUPPLEMENTARY REPORT
B3: MANAGEMENT LETTER
B4: To The Board of | C4: =IF(ISBLANK(SCHOOLNAME),"",SCHOOLNAME) -> Western Canada Hockey Academy

Sheet Enrolment Report
B1: =SCHOOLNAME -> Western Canada Hockey Academy
B2: AUDITOR'S SUPPLEMENTARY REPORT
B3: AUDITOR'S REPORT ON ENROLMENT
D4: ="at "&Enryr -> at September 29, 2023
B6: To the Board of | C6: =IF(ISBLANK(SCHOOLNAME),"",SCHOOLNAME) -> Western Canada Hockey Academy
B8: We have audited the EIS Certification and Enrolment Report (IS EIS CERT-PART 2 OF 2) prepared in
B9: accordance with Part1, Section 1.1 of the Independent Schools Funding Reporting Requirements for the
B10: ="school year "&SCHYR&" "&"of the" -> school year 2023/2024 of the | C10: =IF(ISBLANK(SCHOOLNAME),"",SCHOOLNAME) -> Western Canada Hockey Academy
B11: at September 29. The enrolment information is the responsibility of the School's management.
B12: Our responsibility is to express an opinion on this enrolment information based on our audit.
B14: We conducted our audit in accordance with the standards for assurance engagements set out in the CPA
B15: Canada Handbook - Assurance. Those standards require that we plan and perform an audit to obtain reasonable
B16: assurance whether the enrolment information is free of material misstatement. An audit includes examining,
B17: on a test basis, evidence supporting the amounts and disclosures in the enrolment information.
B19: In our opinion, this report presents fairly, in all material aspects, the enrolment of the
B20: =IF(ISBLANK(SCHOOLNAME),"",SCHOOLNAME) -> Western Canada Hockey Academy
B21: ="at "&Enryr& " in accordance with the Independent Schools Funding Reporting Requirements" -> at September 29, 2023 in accordance with the Independent Schools Funding Reporting Requirements
B22: =" for the "&SCHYR&" school year referred to above." -> for the 2023/2024 school year referred to above.
B28: Date | D28: Auditor
B32: I herby certify that the preceding report has been presented to the members of the Board of the
B33: =IF(ISBLANK(SCHOOLNAME),"",SCHOOLNAME) -> Western Canada Hockey Academy
B39: Date | D39: Chairperson of the Board

Sheet Statement of Financial Position
B1: =IF(ISBLANK(SCHOOLNAME),"",SCHOOLNAME) -> Western Canada Hockey Academy | H1: =IF(DATE=0,"",DATE) -> 2024-07-18T14:44:41.570
B3: OPERATING FUND - STATEMENT OF FINANCIAL POSITION
B4: ="As at "&YrEnded&" "&THISYR -> As at June 30, 2024
B5: ASSETS
B6: Cash | H6: 0
B7: Investments | H7: 0
B8: Accounts Receivable
C9: Provincial Government | F9: 0
C10: Federal Government | F10: 0
C11: School Fees | F11: 0
C12: Other (please specify)
F13: 0
F14: 0
F15: 0 | H15: =SUM(F9:F11,F13:F15) -> 0
B17: Less Allowance for Doubtful Accounts | H17: 0
B18: Inventory | H18: 0
B19: Prepaid Expenses | H19: 0
B20: Other (please specify)
H21: 0
H22: =SUM(H6,H7,H15,H17:H19,H21) -> 0
B24: LIABILITIES AND FUND BALANCES
B25: Bank Indebtedness | H25: 0
B26: Accounts Payable
C27: Province of Manitoba | F27: 0
C28: Other | F28: 0 | H28: =SUM(F27:F28) -> 0
B29: Accrued Liabilities | H29: 0
B30: Unearned Revenue | H30: 0
B31: Loans | H31: 0
B32: Other (please specify)
H33: 0
H34: 0
H35: 0
H36: =SUM(H25,H28:H31,H33:H35) -> 0
B37: Accumulated Surplus (Deficit) | H37: =ACCSURPLUS -> 0
H38: =H36+H37 -> 0

Sheet Surplus
B1: =IF(ISBLANK(SCHOOLNAME),"",SCHOOLNAME) -> Western Canada Hockey Academy | H1: =IF(DATE=0,"",DATE) -> 2024-07-18T14:44:41.570
B2: OPERATING FUND
B3: STATEMENT OF SURPLUS (DEFICIT)
B4: =ForYr -> For the Year Ended June 30, 2024
B6: =" Accumulated Surplus (Deficit), June 30, "&LASTYR -> Accumulated Surplus (Deficit), June 30, 2023 | H6: 0
B7: Add: Net Current Year Surplus (Deficit) | H7: =NETSURPLUS -> 0
B8: Adjustments Affecting Prior Year(s)
F9: 0
F10: 0
F11: 0
F12: 0 | H12: =SUM(F9:F12) -> 0
B13: =" Accumulated Surplus (Deficit), June 30, "&THISYR -> Accumulated Surplus (Deficit), June 30, 2024 | H13: =SUM(H6,H7,H12) -> 0

Sheet Statement of Operations
B1: =IF(ISBLANK(SCHOOLNAME),"",SCHOOLNAME) -> Western Canada Hockey Academy | H1: =IF(DATE=0,"",DATE) -> 2024-07-18T14:44:41.570
B3: OPERATING FUND
B4: STATEMENT OF OPERATIONS
B5: =ForYr -> For the Year Ended June 30, 2024
B7: REVENUES
C8: Provincial Government
C9: Department of Education
D10: Instruction and Services | F10: =IF(OR(+Allowable!H26=0,+Allowable!H26=""),0,+Allowable!H26) -> 0
D11: Student Support Services | F11: =+Allowable!F26 -> 0
D12: Curricular Materials | F12: 0 | H12: =SUM(F10:F12) -> 0
D13: Other (please specify)
H14: 0
C15: Federal Government
D16: French Language Grant | H16: 0
D17: Other | H17: 0
C18: School Fees
D19: Parental and Other Sources | H19: 0
C20: Other (please specify)
H21: 0
H22: 0
H23: 0
H24: 0
H25: 0
H26: 0
H27: =SUM(H12,H14,H16:H26) -> 0
B28: EXPENDITURES
C29: Regular Instruction | H29: =OE1TOT -> 0
C30: Student Support Services | H30: =OE2TOT -> 0
C31: Pre-Kindergarten Education | H31: =OE4TOT -> 0
C32: Administration | H32: =OE51TOT+OE52TOT -> 0
C33: Instructional and Pupil Support Services | H33: =OE6TOT -> 0
C34: Transportation/Boarding of Pupils | H34: =OE7TOT -> 0
C35: Operations and Maintenance | H35: =OE8TOT -> 0
H36: =SUM(H29:H35) -> 0
C38: CURRENT YEAR OPERATING SURPLUS (DEFICIT) | H38: =H27-H36 -> 0
C39: CORPORATE TAX | H39: 0
C40: TRANSFERS (TO) FROM CAPITAL FUND | H40: 0
C41: NET CURRENT YEAR SURPLUS (DEFICIT) | H41: =H38-H39+H40 -> 0

Sheet Expenditures
A1: =IF(ISBLANK(SCHOOLNAME),"",SCHOOLNAME) -> Western Canada Hockey Academy | B1: OPERATING FUND STATEMENT OF EXPENDITURE | J1: =IF(DATE=0,"",DATE) -> 2024-07-18T14:44:41.570
B2: =ForYr -> For the Year Ended June 30, 2024
C3: STUDENT | E3: ADMINISTRATION | G3: INSTRUCTIONAL | H3: TRANSPORTATION
C4: SUPPORT | D4: PRE-KINDERGARTEN | G4: AND PUPIL | H4: / BOARDING | I4: OPERATIONS
B5: REGULAR | C5: SERVICES | D5: EDUCATION | E5: BOARD OF | F5: SCHOOL | G5: SUPPORT | H5: OF | I5: AND
A6: CODE OBJECT \ FUNCTION | B6: INSTRUCTION | C6: (see note) | E6: DIRECTORS | F6: ADMINISTRATION | G6: SERVICES | H6: PUPILS | I6: MAINTENANCE | J6: TOTALS
A7: 300 SALARIES
A8: 310 Directors Remuneration | J8: =E8 -> 0
A9: 320 Executive, Managerial and Supervisory | C9: =IF(_OE2320=0,0,_OE2320) -> 0 | J9: =SUM(B9:I9) -> 0
A10: 330 Instructional - Teaching | C10: =IF(_OE2330=0,0,_OE2330) -> 0 | J10: =SUM(B10:D10,G10) -> 0
A11: 350 Instructional - Other | C11: =IF(_OE2350=0,0,_OE2350) -> 0 | J11: =SUM(B11:D11,G11,H11) -> 0
A12: 360 Technical, Specialized and Service | C12: =IF(_OE2360=0,0,_OE2360) -> 0 | J12: =SUM(B12:I12) -> 0
A13: 370 Secretarial, Clerical and Other | C13: =IF(_OE2370=0,0,_OE2370) -> 0 | J13: =SUM(B13:I13) -> 0
A14: 380 Clinicians | C14: =IF(_OE2380=0,0,_OE2380) -> 0 | J14: =_OE238 -> 0
A15: Total Salaries | B15: =SUM(B9:B13) -> 0 | C15: =SUM(C9:C14) -> 0 | D15: =SUM(D9:D13) -> 0 | E15: =SUM(E8,E9,E12,E13) -> 0 | F15: =SUM(F9,F12,F13) -> 0 | G15: =SUM(G9:G13) -> 0 | H15: =SUM(H9,H11:H13) -> 0 | I15: =SUM(I9,I12,I13) -> 0 | J15: =SUM(B15:I15) -> 0
A16: 400 EMPLOYEES BENEFITS AND ALLOWANCES | C16: =IF(_OE2410=0,0,_OE2410) -> 0 | J16: =SUM(B16:I16) -> 0
A17: 500-600 SERVICES
A18: 510 Professional, Technical and Specialized | C18: =IF(_OE2510=0,0,_OE2510) -> 0 | J18: =SUM(B18:I18) -> 0
A19: 520 Communications | C19: =IF(_OE2520=0,0,_OE2520) -> 0 | J19: =SUM(B19:I19) -> 0
A20: 530 Utility Services | J20: =_OE853 -> 0
A21: 540 Travel and Meetings | C21: =IF(_OE2540=0,0,_OE2540) -> 0 | J21: =SUM(B21:I21) -> 0
A22: 550 Transportation of Pupils | J22: =H22 -> 0
A23: 560 Tuition | C23: =IF(_OE2560=0,0,_OE2560) -> 0 | J23: =SUM(B23,C23,G23) -> 0 | K23: 6
A24: 570 Printing | C24: =IF(_OE2570=0,0,_OE2570) -> 0 | J24: =SUM(B24:G24) -> 0
A25: 580 Insurance and Bond Premiums | J25: =SUM(E25:F25,H25,I25) -> 0
A26: 590 Maintenance and Repair Services | C26: =IF(_OE2590=0,0,_OE2590) -> 0 | J26: =SUM(B26:I26) -> 0
A27: 610 Rentals | C27: =IF(_OE2610=0,0,_OE2610) -> 0 | J27: =SUM(B27:I27) -> 0
A28: 620 Taxes | C28: =IF(_OE2620=0,0,_OE2620) -> 0 | J28: =SUM(B28:I28) -> 0
A29: 630 Advertising and Promotion | C29: =IF(_OE2630=0,0,_OE2630) -> 0 | J29: =SUM(C29:I29) -> 0
A30: 640 Dues and Fees | C30: =IF(_OE2640=0,0,_OE2640) -> 0 | J30: =SUM(B30:I30) -> 0
A31: 650 Professional Development | C31: =IF(_OE2650=0,0,_OE2650) -> 0 | J31: =SUM(B31:I31) -> 0
A32: Total Services | B32: =SUM(B17:B31) -> 0 | C32: =SUM(C17:C31) -> 0 | D32: 0 | E32: 0 | F32: 0 | G32: 0 | H32: 0 | I32: 0 | J32: =SUM(B32:I32) -> 0
A33: 700 SUPPLIES, MATERIALS AND MINOR EQUIPMENT
A34: 710 Supplies | C34: =IF(_OE2710=0,0,_OE2710) -> 0 | J34: =SUM(B34:I34) -> 0
A35: 740 Curricular and Media Materials | C35: =IF(_OE2740=0,0,_OE2740) -> 0 | J35: =SUM(B35:D35)+_OE674 -> 0
A36: 760 Minor Equipment | C36: =IF(_OE2760=0,0,_OE2760) -> 0 | J36: =SUM(B36:I36) -> 0
A37: Total Supplies, Materials and Minor Equipment | B37: =SUM(B34:B36) -> 0 | C37: =SUM(C34:C36) -> 0 | D37: =SUM(D34:D36) -> 0 | E37: =SUM(E34,E36) -> 0 | F37: =SUM(F34,F36) -> 0 | G37: =SUM(G34:G36) -> 0 | H37: =SUM(H34,H36) -> 0 | I37: =SUM(I34,I36) -> 0 | J37: =SUM(B37:I37) -> 0
A38: 900 TRANSFERS AND OTHER
A39: 950 Bad Debts | J39: =_OE5296 -> 0
A40: 970 Interest and Bank Charges | J40: =F40 -> 0
A41: 980 Organizations and Individuals and Other | C41: =IF(_OE2980=0,0,_OE2980) -> 0 | J41: =SUM(B41,C41,F41,G41) -> 0
A42: Total Transfers and Other | B42: =_OE198 -> 0 | C42: =_OE298 -> 0 | F42: =SUM(F39:F41) -> 0 | G42: =_OE698 -> 0 | J42: =SUM(B42:C42,F42:G42) -> 0
A44: TOTALS | B44: =SUM(B15:B16,B32,B37,B42) -> 0 | C44: =IF(AND(SUM(C15:C16,C32,C37,C42)>25000,SUM(C15:C16,C32,C37,C42)<>_TOT200),"Error *",SUM(C15:C16,C32,C37,C42)) -> 0 | D44: =SUM(D15:D16,OE4SERV,OE4SUP) -> 0 | E44: =SUM(E15:E16,E32,E37) -> 0 | F44: =SUM(F15:F16,F32,F37,F42) -> 0 | G44: =SUM(G15:G16,G32,G37,G42) -> 0 | H44: =SUM(H15:H16,H32,H37) -> 0 | I44: =SUM(I15:I16,I32,I37) -> 0 | J44: =SUM(B44:I44) -> 0
A45: Note: An Independent School with total Special Education Services expenditures greater than $25,000 MUST complete Appendix A "Special Ed tab".
A46: =IF(AND(SUM(C15:C16,C32,C37,C42)>25000,_TOT200=0),"Error: You must complete Appendix A on Special Ed worksheet","") -> 

Sheet Special Ed
A1: =IF(ISBLANK(SCHOOLNAME),"",SCHOOLNAME) -> Western Canada Hockey Academy | B1: SPECIAL EDUCATION SERVICES EXPENDITURES DETAIL | H1: =IF(DATE=0,"",DATE) -> 2024-07-18T14:44:41.570
B2: =ForYr -> For the Year Ended June 30, 2024
A3: =IF(AND(OE2TOT>25000,_TOT200=0),"Error: You Need to complete this worksheet","") ->  | B3: * TO BE COMPLETED BY SCHOOLS WITH TOTAL SPECIAL EDUCATION SERVICES EXPENDITURES GREATER THAN $25,000
D4: CLINICAL AND | G4: OTHER
B5: ADMINISTRATION | C5: GIFTED | D5: RELATED | E5: SPECIAL | F5: REGULAR | G5: RESOURCE
A6: CODE OBJECT \ PROGRAM | B6: /CO-ORDINATION | C6: EDUCATION | D6: SERVICES | E6: PLACEMENT | F6: PLACEMENT | G6: SERVICES | H6: TOTALS
A7: 300 SALARIES
A8: 320 Executive, Managerial and Supervisory | H8: =SUM(B8,C8,E8) -> 0
A9: 330 Instructional - Teaching | H9: =SUM(C9,E9:G9) -> 0
A10: 350 Instructional - Other | H10: =SUM(C10,E10:G10) -> 0
A11: 360 Technical, Specialized and Service | H11: =SUM(C11,E11:G11) -> 0
A12: 370 Secretarial, Clerical and Other | H12: =SUM(B12:G12) -> 0
A13: 380 Clinicians | H13: =_OE2338 -> 0
A14: Total Salaries | B14: =SUM(B8,B12) -> 0 | C14: =SUM(C8:C12) -> 0 | D14: =SUM(D12,D13) -> 0 | E14: =SUM(E8:E12) -> 0 | F14: =SUM(F9:F12) -> 0 | G14: =SUM(G9:G12) -> 0 | H14: =SUM(B14:G14) -> 0
A15: 400 EMPLOYEES BENEFITS AND ALLOWANCES | H15: =SUM(B15:G15) -> 0
A16: 500-600 SERVICES
A17: 510 Professional, Technical and Specialized | H17: =SUM(C17:G17) -> 0 | I17: 7
A18: 520 Communications | H18: =SUM(B18:G18) -> 0
A19: 540 Travel and Meetings | H19: =SUM(B19:G19) -> 0
A20: 560 Tuition | H20: =SUM(C20:G20) -> 0
A21: 570 Printing | H21: =SUM(B21:G21) -> 0
A22: 590 Maintenance and Repair Services | H22: 0
A23: 610 Rentals | H23: 0
A24: 620 Taxes | H24: 0
A25: 630 Advertising and Promotion | H25: 0
A26: 640 Dues and Fees | H26: 0
A27: 650 Professional Development | H27: 0
A28: Total Services | B28: =SUM(B18,B19,B21:B27) -> 0 | C28: =SUM(C17:C27) -> 0 | D28: =SUM(D17:D27) -> 0 | E28: =SUM(E17:E27) -> 0 | F28: =SUM(F17:F27) -> 0 | G28: =SUM(G17:G27) -> 0 | H28: 0
A29: 700 SUPPLIES, MATERIALS AND MINOR EQUIPMENT
A30: 710 Supplies | H30: =SUM(B30:G30) -> 0
A31: 740 Curricular and Media Materials | H31: =SUM(B31:G31) -> 0
A32: 760 Minor Equipment | H32: =SUM(B32:G32) -> 0
A33: Total Supplies, Materials and Minor Equipment | B33: =SUM(B30:B32) -> 0 | C33: 0 | D33: 0 | E33: 0 | F33: 0 | G33: 0 | H33: =SUM(B33:G33) -> 0
A34: 980 Organizations and Individuals | H34: =SUM(B34:G34) -> 0
A36: TOTALS | B36: =SUM(B14:B15,B28,B33,B34) -> 0 | C36: 0 | D36: 0 | E36: 0 | F36: 0 | G36: 0 | H36: =SUM(B36:G36) -> 0

Sheet Allowable
A1: =IF(ISBLANK(SCHOOLNAME),"",SCHOOLNAME) -> Western Canada Hockey Academy | H1: =IF(DATE=0,"",DATE) -> 2024-07-18T14:44:41.570
A3: STATEMENT OF ALLOWABLE EXPENDITURES
A4: =ForYr -> For the Year Ended June 30, 2024
A5: To be completed by all Independent Schools
F7: STUDENT | H7: INSTRUCTION
F8: SUPPORT | H8: AND
F9: SERVICES | H9: SERVICES
A11: TOTAL EXPENDITURES | F11: =OE2TOT -> 0 | G11: (1) | H11: =TOTEXP -> 0 | J11: (2)
A13: LESS: | B13: Student Support Services Grants | H13: =F26 -> 0 | J13: (3) | K13: =IF(AND(Code!O79>25000,_TOT200=0),"<= Special Ed tab needs to be completed","") -> 
B14: Curricular Materials Grant | F14: =ROUND(IF(_OE274=0,0,CURRMAT*(_OE274)/(_OE740)),0) -> 0 | G14: (4) | H14: =ROUND(CURRMAT-CURRMATSPEC,0) -> 0 | J14: (4)
B15: Cost of non-certified teachers teaching courses other than non-credit religion | F15: 0 | G15: (5) | H15: 0 | J15: (5)
B16: Cost of non-credit religious instruction in excess of 1/2 hour per day | F16: 0 | G16: (6) | H16: 0 | J16: (6)
A17: SUB TOTAL | F17: =F11-SUM(F14:F16) -> 0 | H17: =H11-SUM(H13:H16) -> 0
A19: LESS: Pre-Kindergarten Expenditures | H19: =OE4TOT -> 0 | J19: (7)
A20: LESS: | B20: Expenditures related to teaching non-funded pupils (see below) | F20: =E50 -> 0 | H20: =G50 -> 0 | J20: (8) | K20: =IF(NONFUNDINSTR+H19>H11,"<= (7) + (8) more than Total Exp","") -> 
A22: ALLOWABLE EXPENDITURES | F22: =IF(F19+NONFUNDSPECED>F17,"Error",F17-F19-F20) -> 0 | H22: =IF(NONFUNDINSTR+H19>H11,"Error",H17-H19-H20) -> 0
A24: GRANTS RECEIVED | F24: =+Code!O79 -> 0 | G24: (9) | H24: =+Code!N79 -> 0 | J24: (9)
A26: GRANTS EARNED CALCULATION | F26: =IF(AND(OE2TOT>25000,_TOT200=0),"Error",IF(GRANTSPECED>ALLOWSPECED,ALLOWSPECED,GRANTSPECED)) -> 0 | H26: =IF(GRANTINST>ALLOWINST,ALLOWINST,GRANTINST) -> 0 | J26: (10)
A28: PORTION OF THE GRANT RECOVERABLE (IN EXCESS OF ALLOWABLE EXPENDITURES) | F28: =IF(GRANTSPECED>ALLOWSPECED,GRANTSPECED-ALLOWSPECED,0) -> 0 | G28: (11) | H28: =IF(GRANTINST>ALLOWINST,GRANTINST-ALLOWINST,0) -> 0 | J28: (11)
A29: NOTES: | C29: =IF(AND(GRANTINST<>0,PERSTOT=0),"Personnel is Zero, Please complete.","") -> 
A30: (1) | B30: Total Student Support Services expenditures from page 6.
A31: (2) | B31: Total operating fund expenditures from page 6.
A32: (3) | B32: Student Support Services grant less the portion of the grant in excess of the allowable expenditures.
A33: (4) | B33: Curricular Materials grant is the Curricular Materials grant, prorated between Special Education Services and Instruction
B34: and Services by multiplying the grant by the percentage of Curricular Materials expenditures in each category.
A35: (5) | B35: The cost of non-certified teachers teaching courses other than religion is to be deducted from the column to which the
B36: expenditures have been charged.
A37: (6) | B37: The cost of religious instruction in excess of 1/2 hour per day or 2 1/2 hours per week, is to be deducted from the column
B38: to which the expenditures have been charged.
A39: (7) | B39: The cost of Pre-Kindergarten expenditures
A40: (8) | B40: The percentage of the cost related to teaching non-funded pupils is determined as follows:
D42: Student Support Services | F42: Instruction and Services
B43: Enrolment at | D43: Number | E43: % | F43: Number | G43: %
B44: ="Sept. 29, "&LASTYR -> Sept. 29, 2023 | D44: of Pupils | E44: of Total | F44: of Pupils | G44: of Total
B45: Eligible Pupils (i) | D45: =+Code!L79+Code!M79 -> 0 | E45: =IF(D47=0,0,D45/D47) -> 0 | F45: =+Code!K79 -> 0 | G45: =IF(TOTPUPIS="Error",0,IF(F47=0,0,F45/F47)) -> 0
B46: Non-Funded Pupils (ii) | E46: =IF(D47=0,0,D46/D47) -> 0 | G46: =IF(TOTPUPIS="Error",0,IF(F47=0,0,F46/F47)) -> 0
B47: Totals (iii) | D47: =D45+D46 -> 0 | E47: =E45+E46 -> 0 | F47: =F45+F46 -> 0 | G47: =IF(TOTPUPIS="Error",0,G45+G46) -> 0
B48: Total Expenditures | E48: =F17 -> 0 | G48: =H17 -> 0
B49: Expenditures pertaining to
B50: non-funded pupils | E50: =ROUND(E46*E48,0) -> 0 | G50: =IF(TOTPUPIS="Error",0,ROUND(G46*G48,0)) -> 0
B52: (i) | C52: Eligible enrolment as defined in the Private Schools Grants Regulation as calculated on the Support Calculation.
B53: (ii) | C53: Total of all non-funded pupils enrolled in the school. This is Foreign Exchange and Others on the Support
C54: Calculation. This does not include Pre-Kindergarten or Kindergarten pupils.
B55: (iii) | C55: This total does NOT reconcile to total enrolment.
A56: (9) | B56: Total of Level 2, Level 3 and Instruction and Services Grants.
A57: (10) | B57: Lesser of grants received and allowable expenditures
A58: (11) | B58: This amount will be recovered from a future grant payment.

Sheet Personnel
A1: =IF(ISBLANK(SCHOOLNAME),"",SCHOOLNAME) -> Western Canada Hockey Academy | I1: =IF(DATE=0,"",DATE) -> 2024-07-18T14:44:41.570
A3: FULL TIME EQUIVALENT PERSONNEL EMPLOYED (UNAUDITED)
A4: =Enryr -> September 29, 2023
D6: ADMINISTRATION | F6: INSTRUCTION | G6: TRANSPORTATION
C7: STUDENT | F7: AND PUPIL | G7: / BOARDING | H7: OPERATIONS
B8: REGULAR | C8: SUPPORT | D8: BOARD OF | E8: SCHOOL | F8: SUPPORT | G8: OF | H8: AND
A9: CODE OBJECT \ FUNCTION | B9: INSTRUCTION | C9: SERVICES | D9: DIRECTORS | E9: ADMINISTRATION | F9: SERVICES | G9: PUPILS | H9: MAINTENANCE | I9: TOTALS
A10: 310 Directors (headcount) | I10: =D10 -> 0
A11: 320 Executive, Managerial and Supervisory | I11: =SUM(B11:H11) -> 0
A12: 330 Instructional - Teaching | I12: =SUM(B12,C12,F12) -> 0
A13: 350 Instructional - Teacher Aides and Other | I13: =SUM(B13,C13,F13,G13) -> 0 | J13: 9
A14: 360 Technical, Specialized and Service | I14: =SUM(B14:H14) -> 0
A15: 370 Secretarial, Clerical and Other | I15: =SUM(B15:H15) -> 0
A16: 380 Clinician | I16: =C16 -> 0
A18: TOTALS | B18: =SUM(B11:B15) -> 0 | C18: =SUM(C11:C16) -> 0 | D18: =SUM(D10,D11,D14,D15) -> 0 | E18: =SUM(E11,E14,E15) -> 0 | F18: =SUM(F11:F15) -> 0 | G18: =SUM(G11,G13:G15) -> 0 | H18: =SUM(H11,H14,H15) -> 0 | I18: =SUM(I10:I16) -> 0

Sheet Notes
B1: =SCHOOLNAME -> Western Canada Hockey Academy
B2: NOTES TO THE FINANCIAL STATEMENTS
B3: =ForYr -> For the Year Ended June 30, 2024

Sheet Notes (2)
B1: =SCHOOLNAME -> Western Canada Hockey Academy
B2: NOTES TO THE FINANCIAL STATEMENTS
B3: =ForYr -> For the Year Ended June 30, 2024

Sheet Code (hidden)
B1: =NOW() -> 2024-07-18T14:44:41.570 | I1: =+Enryr -> September 29, 2023 | J1: Kdg | K1: total Eligible Enrolment | L1: Level 2 | M1: Level3 | N1: Preliminar I & S Grant | O1: Total Special needs Col S | P1: Total Curricular materials | Q1: Total adjustments | R1: TOTAL GRANT PAID | Z1: Enrolment Tab | AD1: Funding Tab
B2: DATE: | Y2: Source File: PY July support file and last school year payment | Z2: Col H | AA2: Col S | AB2: Col T | AC2: Col U | AE2: Preliminar I & S Grant | AF2: Total Special needs | AG2: Total Curricular materials | AH2: Total adjustments | AI2: TOTAL GRANT PAID | AJ2: July 2022 Support File | AK2: Check
F3: Formulas => | G3: 66 | H3: =IF(G3=1,"",VLOOKUP(G3,G4:I74,2,FALSE)) -> 2338 | I3: =VLOOKUP(G3,G4:I74,3,FALSE) -> Western Canada Hockey Academy | X3: School Name | Z3: K | AA3: =+K1 -> total Eligible Enrolment | AB3: =+L1 -> Level 2 | AC3: =+M1 -> Level3 | AE3: Column N | AF3: Col S | AG3: Col O | AH3: Col AE | AI3: Col AF | AJ3: Total Grant Paid
A4: ForYr | B4: ="For the Year Ended June 30, "&FIXED(B7,0,1) -> For the Year Ended June 30, 2024 | G4: 1 | I4: Press down arrow for school name =>
A5: ATSEP | B5: ="September 29, "&FIXED(B6,0,1) -> September 29, 2023 | G5: =+G4+1 -> 2 | H5: 2221 | I5: Academie Islamique | J5: =SUMIF($V$5:$V$74,$H5,$Z$5:$Z$74) -> 7 | K5: =SUMIF($V$5:$V$74,$H5,$AA$5:$AA$74) -> 52.5 | L5: =SUMIF($V$5:$V$74,$H5,$AB$5:$AB$74) -> 0 | M5: =SUMIF($V$5:$V$74,$H5,$AC$5:$AC$74) -> 0 | N5: =SUMIF($AD$5:$AD$74,$H5,$AE$5:$AE$78) -> 339833 | O5: =SUMIF($AD$5:$AD$74,$H5,$AF$5:$AF$78) -> 0 | P5: =SUMIF($AD$5:$AD$74,$H5,$AG$5:$AG$78) -> 3150 | Q5: =SUMIF($AD$5:$AD$74,$H5,$AH$5:$AH$74) -> 0 | R5: =SUMIF($AD$5:$AD$74,$H5,$AI$5:$AI$74) -> 342983 | S5: =+N5+O5+P5+Q5-R5 -> 0 | V5: 2221 | W5: LR | X5: Academie Islamique | Y5: Academie Islamique | Z5: =VLOOKUP(V5,[1]enrolment!$B$10:$H$78,7,FALSE) -> 7 | AA5: =VLOOKUP(V5,[1]enrolment!$B$10:$S$78,18,FALSE) -> 52.5 | AB5: =VLOOKUP(V5,[1]enrolment!$B$10:$T$78,19,FALSE) -> 0 | AC5: =VLOOKUP(V5,[1]enrolment!$B$10:$U$78,20,FALSE) -> 0 | AD5: 2221 | AE5: =VLOOKUP(AD5,[1]Funding!$B$10:$N$78,13,FALSE) -> 339833 | AF5: =VLOOKUP(AD5,[1]Funding!$B$10:$S$78,18,FALSE) -> 0 | AG5: =VLOOKUP(AD5,[1]Funding!$B$10:$S$78,14,FALSE) -> 3150 | AH5: =VLOOKUP(AD5,[1]Funding!$B$10:$AE$78,30,FALSE) -> 0 | AI5: =SUM(AE5:AH5) -> 342983 | AJ5: =VLOOKUP(AD5,[1]Funding!$B$10:$AF$78,31,FALSE) -> 342983 | AK5: =AI5-AJ5 -> 0
A6: LASTYR | B6: =+THISYR-1 -> 2023 | G6: 3 | H6: 2114 | I6: Alhijra Islamic School | J6: =SUMIF($V$5:$V$74,$H6,$Z$5:$Z$74) -> 26 | K6: =SUMIF($V$5:$V$74,$H6,$AA$5:$AA$74) -> 265 | L6: 0 | M6: 0 | N6: 1715345 | O6: 0 | P6: 15900 | Q6: 0 | R6: 1731245 | S6: =+N6+O6+P6+Q6-R6 -> 0 | V6: 2114 | W6: LR | X6: Alhijra Islamic School | Y6: Alhijra Islamic School | Z6: =VLOOKUP(V6,[1]enrolment!$B$10:$H$78,7,FALSE) -> 26 | AA6: =VLOOKUP(V6,[1]enrolment!$B$10:$S$78,18,FALSE) -> 265 | AB6: =VLOOKUP(V6,[1]enrolment!$B$10:$T$78,19,FALSE) -> 0 | AC6: =VLOOKUP(V6,[1]enrolment!$B$10:$U$78,20,FALSE) -> 0 | AD6: 2114 | AE6: =VLOOKUP(AD6,[1]Funding!$B$10:$N$78,13,FALSE) -> 1715345 | AF6: =VLOOKUP(AD6,[1]Funding!$B$10:$S$78,18,FALSE) -> 0 | AG6: =VLOOKUP(AD6,[1]Funding!$B$10:$S$78,14,FALSE) -> 15900 | AH6: =VLOOKUP(AD6,[1]Funding!$B$10:$AE$78,30,FALSE) -> 0 | AI6: =SUM(AE6:AH6) -> 1731245 | AJ6: =VLOOKUP(AD6,[1]Funding!$B$10:$AF$78,31,FALSE) -> 1731245 | AK6: =AI6-AJ6 -> 0
A7: THISYR | B7: =+YEARINPUT -> 2024 | G7: 4 | H7: 1733 | I7: Austin Christian Academy | J7: 3 | K7: 55.5 | L7: 0 | M7: 1 | N7: 358336 | O7: 21076 | P7: 3330 | Q7: 0 | R7: 382742 | S7: 0 | V7: 1733 | W7: BE | X7: Austin Christian Academy | Y7: Austin Christian Academy Inc | Z7: =VLOOKUP(V7,[1]enrolment!$B$10:$H$78,7,FALSE) -> 3 | AA7: =VLOOKUP(V7,[1]enrolment!$B$10:$S$78,18,FALSE) -> 55.5 | AB7: =VLOOKUP(V7,[1]enrolment!$B$10:$T$78,19,FALSE) -> 0 | AC7: =VLOOKUP(V7,[1]enrolment!$B$10:$U$78,20,FALSE) -> 1 | AD7: 1733 | AE7: =VLOOKUP(AD7,[1]Funding!$B$10:$N$78,13,FALSE) -> 358336 | AF7: =VLOOKUP(AD7,[1]Funding!$B$10:$S$78,18,FALSE) -> 21076 | AG7: =VLOOKUP(AD7,[1]Funding!$B$10:$S$78,14,FALSE) -> 3330 | AH7: =VLOOKUP(AD7,[1]Funding!$B$10:$AE$78,30,FALSE) -> 0 | AI7: 382742 | AJ7: =VLOOKUP(AD7,[1]Funding!$B$10:$AF$78,31,FALSE) -> 382742 | AK7: 0
A8: Enryr | B8: ="September 29, "&FIXED(B6,0,1) -> September 29, 2023 | G8: 5 | H8: 2336 | I8: Avicenna Academy | J8: 18 | K8: 38 | L8: 0 | M8: 0 | N8: 245974 | O8: 0 | P8: 2280 | Q8: 0 | R8: 248254 | S8: 0 | V8: 2336 | W8: PE | X8: Avicenna Academy | Y8: Avicenna Academy | Z8: =VLOOKUP(V8,[1]enrolment!$B$10:$H$78,7,FALSE) -> 18 | AA8: =VLOOKUP(V8,[1]enrolment!$B$10:$S$78,18,FALSE) -> 38 | AB8: =VLOOKUP(V8,[1]enrolment!$B$10:$T$78,19,FALSE) -> 0 | AC8: =VLOOKUP(V8,[1]enrolment!$B$10:$U$78,20,FALSE) -> 0 | AD8: 2336 | AE8: =VLOOKUP(AD8,[1]Funding!$B$10:$N$78,13,FALSE) -> 245974 | AF8: =VLOOKUP(AD8,[1]Funding!$B$10:$S$78,18,FALSE) -> 0 | AG8: =VLOOKUP(AD8,[1]Funding!$B$10:$S$78,14,FALSE) -> 2280 | AH8: =VLOOKUP(AD8,[1]Funding!$B$10:$AE$78,30,FALSE) -> 0 | AI8: =SUM(AE8:AH8) -> 248254 | AJ8: =VLOOKUP(AD8,[1]Funding!$B$10:$AF$78,31,FALSE) -> 248254 | AK8: =AI8-AJ8 -> 0
A9: Schyr | B9: =+LASTYR&"/"&THISYR -> 2023/2024 | G9: 6 | H9: 1536 | I9: Balmoral Hall School | J9: 30 | K9: 415.5 | L9: 4.5 | M9: 0 | N9: 2511145 | O9: 39900 | P9: 24930 | Q9: 0 | R9: 2575975 | S9: 0 | V9: 1536 | W9: WI | X9: Balmoral Hall School | Y9: Balmoral Hall School For Girls | Z9: =VLOOKUP(V9,[1]enrolment!$B$10:$H$78,7,FALSE) -> 30 | AA9: =VLOOKUP(V9,[1]enrolment!$B$10:$S$78,18,FALSE) -> 415.5 | AB9: =VLOOKUP(V9,[1]enrolment!$B$10:$T$78,19,FALSE) -> 4.5 | AC9: =VLOOKUP(V9,[1]enrolment!$B$10:$U$78,20,FALSE) -> 0 | AD9: 1536 | AE9: =VLOOKUP(AD9,[1]Funding!$B$10:$N$78,13,FALSE) -> 2511145 | AF9: =VLOOKUP(AD9,[1]Funding!$B$10:$S$78,18,FALSE) -> 39900 | AG9: =VLOOKUP(AD9,[1]Funding!$B$10:$S$78,14,FALSE) -> 24930 | AH9: =VLOOKUP(AD9,[1]Funding!$B$10:$AE$78,30,FALSE) -> 0 | AI9: 2575975 | AJ9: =VLOOKUP(AD9,[1]Funding!$B$10:$AF$78,31,FALSE) -> 2575975 | AK9: =AI9-AJ9 -> 0
G10: 7 | H10: 2102 | I10: Beautiful Savior Lutheran School | J10: 12 | K10: 93 | L10: 4 | M10: 1.5 | N10: 601989 | O10: 69695 | P10: 5580 | Q10: 0 | R10: 677264 | S10: 0 | V10: 2102 | W10: LR | X10: Beautiful Savior Lutheran School | Y10: Beautiful Savior Lutheran School Inc | Z10: =VLOOKUP(V10,[1]enrolment!$B$10:$H$78,7,FALSE) -> 12 | AA10: =VLOOKUP(V10,[1]enrolment!$B$10:$S$78,18,FALSE) -> 93 | AB10: =VLOOKUP(V10,[1]enrolment!$B$10:$T$78,19,FALSE) -> 4 | AC10: =VLOOKUP(V10,[1]enrolment!$B$10:$U$78,20,FALSE) -> 1.5 | AD10: 2102 | AE10: =VLOOKUP(AD10,[1]Funding!$B$10:$N$78,13,FALSE) -> 601989 | AF10: =VLOOKUP(AD10,[1]Funding!$B$10:$S$78,18,FALSE) -> 69695 | AG10: =VLOOKUP(AD10,[1]Funding!$B$10:$S$78,14,FALSE) -> 5580 | AH10: =VLOOKUP(AD10,[1]Funding!$B$10:$AE$78,30,FALSE) -> 0 | AI10: 677264 | AJ10: =VLOOKUP(AD10,[1]Funding!$B$10:$AF$78,31,FALSE) -> 677264 | AK10: 0
A11: June 30, | B11: 2024 | G11: 8 | H11: 1077 | I11: Calvin Christian School | J11: 35 | K11: 469 | L11: 9.7 | M11: 4 | N11: 3035837 | O11: 176670 | P11: 28140 | Q11: 0 | R11: 3240647 | S11: 0 | V11: 1077 | W11: RI | X11: Calvin Christian School | Y11: Greater Winnipeg Society For Christian Education Inc | Z11: =VLOOKUP(V11,[1]enrolment!$B$10:$H$78,7,FALSE) -> 35 | AA11: =VLOOKUP(V11,[1]enrolment!$B$10:$S$78,18,FALSE) -> 469 | AB11: =VLOOKUP(V11,[1]enrolment!$B$10:$T$78,19,FALSE) -> 9.7 | AC11: =VLOOKUP(V11,[1]enrolment!$B$10:$U$78,20,FALSE) -> 4 | AD11: 1077 | AE11: =VLOOKUP(AD11,[1]Funding!$B$10:$N$78,13,FALSE) -> 3035837 | AF11: =VLOOKUP(AD11,[1]Funding!$B$10:$S$78,18,FALSE) -> 176670 | AG11: =VLOOKUP(AD11,[1]Funding!$B$10:$S$78,14,FALSE) -> 28140 | AH11: =VLOOKUP(AD11,[1]Funding!$B$10:$AE$78,30,FALSE) -> 0 | AI11: 3240647 | AJ11: =VLOOKUP(AD11,[1]Funding!$B$10:$AF$78,31,FALSE) -> 3240647 | AK11: 0
G12: 9 | H12: 2337 | I12: CanAsia School | J12: 16 | K12: 59 | L12: 0 | M12: 0 | N12: 381907 | O12: 0 | P12: 3540 | Q12: 0 | R12: 385447 | S12: 0 | V12: 2337 | W12: ST | X12: CanAsia School | Y12: CanAsia School | Z12: =VLOOKUP(V12,[1]enrolment!$B$10:$H$78,7,FALSE) -> 16 | AA12: =VLOOKUP(V12,[1]enrolment!$B$10:$S$78,18,FALSE) -> 59 | AB12: =VLOOKUP(V12,[1]enrolment!$B$10:$T$78,19,FALSE) -> 0 | AC12: =VLOOKUP(V12,[1]enrolment!$B$10:$U$78,20,FALSE) -> 0 | AD12: 2337 | AE12: =VLOOKUP(AD12,[1]Funding!$B$10:$N$78,13,FALSE) -> 381907 | AF12: =VLOOKUP(AD12,[1]Funding!$B$10:$S$78,18,FALSE) -> 0 | AG12: =VLOOKUP(AD12,[1]Funding!$B$10:$S$78,14,FALSE) -> 3540 | AH12: =VLOOKUP(AD12,[1]Funding!$B$10:$AE$78,30,FALSE) -> 0 | AI12: =SUM(AE12:AH12) -> 385447 | AJ12: =VLOOKUP(AD12,[1]Funding!$B$10:$AF$78,31,FALSE) -> 385447 | AK12: 0
G13: 10 | H13: 2055 | I13: Cartwright Community Independent School | J13: 0 | K13: 9 | L13: 1 | M13: 0 | N13: 58257 | O13: 9500 | P13: 540 | Q13: 0 | R13: 68297 | S13: 0 | V13: 2055 | W13: PS | X13: Cartwright Community Independent School | Y13: Cartwright Community Independent School | Z13: =VLOOKUP(V13,[1]enrolment!$B$10:$H$78,7,FALSE) -> 0 | AA13: =VLOOKUP(V13,[1]enrolment!$B$10:$S$78,18,FALSE) -> 9 | AB13: =VLOOKUP(V13,[1]enrolment!$B$10:$T$78,19,FALSE) -> 1 | AC13: =VLOOKUP(V13,[1]enrolment!$B$10:$U$78,20,FALSE) -> 0 | AD13: 2055 | AE13: =VLOOKUP(AD13,[1]Funding!$B$10:$N$78,13,FALSE) -> 58257 | AF13: =VLOOKUP(AD13,[1]Funding!$B$10:$S$78,18,FALSE) -> 9500 | AG13: =VLOOKUP(AD13,[1]Funding!$B$10:$S$78,14,FALSE) -> 540 | AH13: =VLOOKUP(AD13,[1]Funding!$B$10:$AE$78,30,FALSE) -> 0 | AI13: 68297 | AJ13: =VLOOKUP(AD13,[1]Funding!$B$10:$AF$78,31,FALSE) -> 68297 | AK13: 0
G14: 11 | H14: 1861 | I14: Children's House | J14: 17 | K14: 8.5 | L14: 1.5 | M14: 0 | N14: 52214 | O14: 13519 | P14: 510 | Q14: 0 | R14: 66243 | S14: 0 | V14: 1861 | W14: WI | X14: Children's House | Y14: St Mary's Montessori School Inc | Z14: =VLOOKUP(V14,[1]enrolment!$B$10:$H$78,7,FALSE) -> 17 | AA14: =VLOOKUP(V14,[1]enrolment!$B$10:$S$78,18,FALSE) -> 8.5 | AB14: =VLOOKUP(V14,[1]enrolment!$B$10:$T$78,19,FALSE) -> 1.5 | AC14: =VLOOKUP(V14,[1]enrolment!$B$10:$U$78,20,FALSE) -> 0 | AD14: 1861 | AE14: =VLOOKUP(AD14,[1]Funding!$B$10:$N$78,13,FALSE) -> 52214 | AF14: =VLOOKUP(AD14,[1]Funding!$B$10:$S$78,18,FALSE) -> 13519 | AG14: =VLOOKUP(AD14,[1]Funding!$B$10:$S$78,14,FALSE) -> 510 | AH14: =VLOOKUP(AD14,[1]Funding!$B$10:$AE$78,30,FALSE) -> 0 | AI14: 66243 | AJ14: =VLOOKUP(AD14,[1]Funding!$B$10:$AF$78,31,FALSE) -> 66243 | AK14: 0
G15: 12 | H15: 1482 | I15: Christ The King School | J15: 26 | K15: 222 | L15: 4 | M15: 0 | N15: 1437006 | O15: 38000 | P15: 13320 | Q15: 0 | R15: 1488326 | S15: 0 | V15: 1482 | W15: LR | X15: Christ The King School | Y15: Christ The King School Inc | Z15: =VLOOKUP(V15,[1]enrolment!$B$10:$H$78,7,FALSE) -> 26 | AA15: =VLOOKUP(V15,[1]enrolment!$B$10:$S$78,18,FALSE) -> 222 | AB15: =VLOOKUP(V15,[1]enrolment!$B$10:$T$78,19,FALSE) -> 4 | AC15: =VLOOKUP(V15,[1]enrolment!$B$10:$U$78,20,FALSE) -> 0 | AD15: 1482 | AE15: =VLOOKUP(AD15,[1]Funding!$B$10:$N$78,13,FALSE) -> 1437006 | AF15: =VLOOKUP(AD15,[1]Funding!$B$10:$S$78,18,FALSE) -> 38000 | AG15: =VLOOKUP(AD15,[1]Funding!$B$10:$S$78,14,FALSE) -> 13320 | AH15: =VLOOKUP(AD15,[1]Funding!$B$10:$AE$78,30,FALSE) -> 0 | AI15: 1488326 | AJ15: =VLOOKUP(AD15,[1]Funding!$B$10:$AF$78,31,FALSE) -> 1488326 | AK15: 0
G16: 13 | H16: 1148 | I16: Christian Heritage School | J16: 15 | K16: 147.5 | L16: 0 | M16: 0 | N16: 954768 | O16: 0 | P16: 8850 | Q16: 0 | R16: 963618 | S16: 0 | V16: 1148 | W16: BR | X16: Christian Heritage School | Y16: Christian Heritage School Society of Brandon Inc | Z16: =VLOOKUP(V16,[1]enrolment!$B$10:$H$78,7,FALSE) -> 15 | AA16: =VLOOKUP(V16,[1]enrolment!$B$10:$S$78,18,FALSE) -> 147.5 | AB16: =VLOOKUP(V16,[1]enrolment!$B$10:$T$78,19,FALSE) -> 0 | AC16: =VLOOKUP(V16,[1]enrolment!$B$10:$U$78,20,FALSE) -> 0 | AD16: 1148 | AE16: =VLOOKUP(AD16,[1]Funding!$B$10:$N$78,13,FALSE) -> 954768 | AF16: =VLOOKUP(AD16,[1]Funding!$B$10:$S$78,18,FALSE) -> 0 | AG16: =VLOOKUP(AD16,[1]Funding!$B$10:$S$78,14,FALSE) -> 8850 | AH16: =VLOOKUP(AD16,[1]Funding!$B$10:$AE$78,30,FALSE) -> 0 | AI16: 963618 | AJ16: =VLOOKUP(AD16,[1]Funding!$B$10:$AF$78,31,FALSE) -> 963618 | AK16: 0
G17: 14 | H17: 1239 | I17: Community Bible Fellowship Christian School | J17: 3 | K17: 40.5 | L17: 4 | M17: 2 | N17: 262157 | O17: 80260 | P17: 2430 | Q17: 0 | R17: 344847 | S17: 0 | V17: 1239 | W17: SW | X17: Community Bible Fellowship Christian School | Y17: Community Bible Fellowship Christian School | Z17: =VLOOKUP(V17,[1]enrolment!$B$10:$H$78,7,FALSE) -> 3 | AA17: =VLOOKUP(V17,[1]enrolment!$B$10:$S$78,18,FALSE) -> 40.5 | AB17: =VLOOKUP(V17,[1]enrolment!$B$10:$T$78,19,FALSE) -> 4 | AC17: =VLOOKUP(V17,[1]enrolment!$B$10:$U$78,20,FALSE) -> 2 | AD17: 1239 | AE17: =VLOOKUP(AD17,[1]Funding!$B$10:$N$78,13,FALSE) -> 262157 | AF17: =VLOOKUP(AD17,[1]Funding!$B$10:$S$78,18,FALSE) -> 80260 | AG17: =VLOOKUP(AD17,[1]Funding!$B$10:$S$78,14,FALSE) -> 2430 | AH17: =VLOOKUP(AD17,[1]Funding!$B$10:$AE$78,30,FALSE) -> 0 | AI17: 344847 | AJ17: =VLOOKUP(AD17,[1]Funding!$B$10:$AF$78,31,FALSE) -> 344847 | AK17: 0
G18: 15 | H18: 2284 | I18: Dasmesh School | J18: 67 | K18: 476.5 | L18: 0 | M18: 0 | N18: 3084385 | O18: 0 | P18: 28590 | Q18: 0 | R18: 3112975 | S18: 0 | V18: 2284 | W18: ST | X18: Dasmesh School | Y18: Dasmesh School | Z18: =VLOOKUP(V18,[1]enrolment!$B$10:$H$78,7,FALSE) -> 67 | AA18: =VLOOKUP(V18,[1]enrolment!$B$10:$S$78,18,FALSE) -> 476.5 | AB18: =VLOOKUP(V18,[1]enrolment!$B$10:$T$78,19,FALSE) -> 0 | AC18: =VLOOKUP(V18,[1]enrolment!$B$10:$U$78,20,FALSE) -> 0 | AD18: 2284 | AE18: =VLOOKUP(AD18,[1]Funding!$B$10:$N$78,13,FALSE) -> 3084385 | AF18: =VLOOKUP(AD18,[1]Funding!$B$10:$S$78,18,FALSE) -> 0 | AG18: =VLOOKUP(AD18,[1]Funding!$B$10:$S$78,14,FALSE) -> 28590 | AH18: =VLOOKUP(AD18,[1]Funding!$B$10:$AE$78,30,FALSE) -> 0 | AI18: 3112975 | AJ18: =VLOOKUP(AD18,[1]Funding!$B$10:$AF$78,31,FALSE) -> 3112975 | AK18: 0
G19: 16 | H19: 1157 | I19: Dufferin Christian School | J19: 23 | K19: 278.5 | L19: 4 | M19: 0.5 | N19: 1802731 | O19: 48565 | P19: 16710 | Q19: 0 | R19: 1868006 | S19: 0 | V19: 1157 | W19: PR | X19: Dufferin Christian School | Y19: Canadian Reformed School Society of Carman Inc | Z19: =VLOOKUP(V19,[1]enrolment!$B$10:$H$78,7,FALSE) -> 23 | AA19: =VLOOKUP(V19,[1]enrolment!$B$10:$S$78,18,FALSE) -> 278.5 | AB19: =VLOOKUP(V19,[1]enrolment!$B$10:$T$78,19,FALSE) -> 4 | AC19: =VLOOKUP(V19,[1]enrolment!$B$10:$U$78,20,FALSE) -> 0.5 | AD19: 1157 | AE19: =VLOOKUP(AD19,[1]Funding!$B$10:$N$78,13,FALSE) -> 1802731 | AF19: =VLOOKUP(AD19,[1]Funding!$B$10:$S$78,18,FALSE) -> 48565 | AG19: =VLOOKUP(AD19,[1]Funding!$B$10:$S$78,14,FALSE) -> 16710 | AH19: =VLOOKUP(AD19,[1]Funding!$B$10:$AE$78,30,FALSE) -> 0 | AI19: 1868006 | AJ19: =VLOOKUP(AD19,[1]Funding!$B$10:$AF$78,31,FALSE) -> 1868006 | AK19: 0
G20: 17 | H20: 1315 | I20: Faith Academy | J20: 46 | K20: 562 | L20: 1 | M20: 1 | N20: 3637826 | O20: 30630 | P20: 33720 | Q20: 0 | R20: 3702176 | S20: 0 | V20: 1315 | W20: WI | X20: Faith Academy | Y20: Faith Academy Inc | Z20: =VLOOKUP(V20,[1]enrolment!$B$10:$H$78,7,FALSE) -> 46 | AA20: =VLOOKUP(V20,[1]enrolment!$B$10:$S$78,18,FALSE) -> 562 | AB20: =VLOOKUP(V20,[1]enrolment!$B$10:$T$78,19,FALSE) -> 1 | AC20: =VLOOKUP(V20,[1]enrolment!$B$10:$U$78,20,FALSE) -> 1 | AD20: 1315 | AE20: =VLOOKUP(AD20,[1]Funding!$B$10:$N$78,13,FALSE) -> 3637826 | AF20: =VLOOKUP(AD20,[1]Funding!$B$10:$S$78,18,FALSE) -> 30630 | AG20: =VLOOKUP(AD20,[1]Funding!$B$10:$S$78,14,FALSE) -> 33720 | AH20: =VLOOKUP(AD20,[1]Funding!$B$10:$AE$78,30,FALSE) -> 0 | AI20: 3702176 | AJ20: =VLOOKUP(AD20,[1]Funding!$B$10:$AF$78,31,FALSE) -> 3702176 | AK20: 0
G21: 18 | H21: 2317 | I21: Freedom International School | J21: 0 | K21: 42.6 | L21: 1 | M21: 0 | N21: 275750 | O21: 9500 | P21: 2556 | Q21: 0 | R21: 287806 | S21: 0 | V21: 2317 | W21: WI | X21: Freedom International School | Y21: Freedom International School | Z21: =VLOOKUP(V21,[1]enrolment!$B$10:$H$78,7,FALSE) -> 0 | AA21: =VLOOKUP(V21,[1]enrolment!$B$10:$S$78,18,FALSE) -> 42.6 | AB21: =VLOOKUP(V21,[1]enrolment!$B$10:$T$78,19,FALSE) -> 1 | AC21: =VLOOKUP(V21,[1]enrolment!$B$10:$U$78,20,FALSE) -> 0 | AD21: 2317 | AE21: =VLOOKUP(AD21,[1]Funding!$B$10:$N$78,13,FALSE) -> 275750 | AF21: =VLOOKUP(AD21,[1]Funding!$B$10:$S$78,18,FALSE) -> 9500 | AG21: =VLOOKUP(AD21,[1]Funding!$B$10:$S$78,14,FALSE) -> 2556 | AH21: =VLOOKUP(AD21,[1]Funding!$B$10:$AE$78,30,FALSE) -> 0 | AI21: 287806 | AJ21: =VLOOKUP(AD21,[1]Funding!$B$10:$AF$78,31,FALSE) -> 287806 | AK21: 0
G22: 19 | H22: 2311 | I22: Gonzaga Middle School | J22: 0 | K22: 59 | L22: 0 | M22: 0 | N22: 381907 | O22: 0 | P22: 3540 | Q22: 0 | R22: 385447 | S22: 0 | V22: 2311 | W22: WI | X22: Gonzaga Middle School | Y22: Gonzaga Middle School | Z22: =VLOOKUP(V22,[1]enrolment!$B$10:$H$78,7,FALSE) -> 0 | AA22: =VLOOKUP(V22,[1]enrolment!$B$10:$S$78,18,FALSE) -> 59 | AB22: =VLOOKUP(V22,[1]enrolment!$B$10:$T$78,19,FALSE) -> 0 | AC22: =VLOOKUP(V22,[1]enrolment!$B$10:$U$78,20,FALSE) -> 0 | AD22: 2311 | AE22: =VLOOKUP(AD22,[1]Funding!$B$10:$N$78,13,FALSE) -> 381907 | AF22: =VLOOKUP(AD22,[1]Funding!$B$10:$S$78,18,FALSE) -> 0 | AG22: =VLOOKUP(AD22,[1]Funding!$B$10:$S$78,14,FALSE) -> 3540 | AH22: =VLOOKUP(AD22,[1]Funding!$B$10:$AE$78,30,FALSE) -> 0 | AI22: 385447 | AJ22: =VLOOKUP(AD22,[1]Funding!$B$10:$AF$78,31,FALSE) -> 385447 | AK22: 0
G23: 20 | H23: 2230 | I23: Gray Academy | J23: 34 | K23: 422 | L23: 3 | M23: 4 | N23: 2731606 | O23: 113020 | P23: 25320 | Q23: 0 | R23: 2869946 | S23: 0 | V23: 2230 | W23: WI | X23: Gray Academy | Y23: Gray Academy | Z23: =VLOOKUP(V23,[1]enrolment!$B$10:$H$78,7,FALSE) -> 34 | AA23: =VLOOKUP(V23,[1]enrolment!$B$10:$S$78,18,FALSE) -> 422 | AB23: =VLOOKUP(V23,[1]enrolment!$B$10:$T$78,19,FALSE) -> 3 | AC23: =VLOOKUP(V23,[1]enrolment!$B$10:$U$78,20,FALSE) -> 4 | AD23: 2230 | AE23: =VLOOKUP(AD23,[1]Funding!$B$10:$N$78,13,FALSE) -> 2731606 | AF23: =VLOOKUP(AD23,[1]Funding!$B$10:$S$78,18,FALSE) -> 113020 | AG23: =VLOOKUP(AD23,[1]Funding!$B$10:$S$78,14,FALSE) -> 25320 | AH23: =VLOOKUP(AD23,[1]Funding!$B$10:$AE$78,30,FALSE) -> 0 | AI23: 2869946 | AJ23: =VLOOKUP(AD23,[1]Funding!$B$10:$AF$78,31,FALSE) -> 2869946 | AK23: 0
G24: 21 | H24: 2151 | I24: Green Acres Colony High School | J24: 0 | K24: 6 | L24: 0 | M24: 0 | N24: 38838 | O24: 0 | P24: 360 | Q24: 0 | R24: 39198 | S24: 0 | V24: 2151 | W24: SR | X24: Green Acres Colony High School | Y24: Green Acres Colony High School | Z24: =VLOOKUP(V24,[1]enrolment!$B$10:$H$78,7,FALSE) -> 0 | AA24: =VLOOKUP(V24,[1]enrolment!$B$10:$S$78,18,FALSE) -> 6 | AB24: =VLOOKUP(V24,[1]enrolment!$B$10:$T$78,19,FALSE) -> 0 | AC24: =VLOOKUP(V24,[1]enrolment!$B$10:$U$78,20,FALSE) -> 0 | AD24: 2151 | AE24: =VLOOKUP(AD24,[1]Funding!$B$10:$N$78,13,FALSE) -> 38838 | AF24: =VLOOKUP(AD24,[1]Funding!$B$10:$S$78,18,FALSE) -> 0 | AG24: =VLOOKUP(AD24,[1]Funding!$B$10:$S$78,14,FALSE) -> 360 | AH24: =VLOOKUP(AD24,[1]Funding!$B$10:$AE$78,30,FALSE) -> 0 | AI24: 39198 | AJ24: =VLOOKUP(AD24,[1]Funding!$B$10:$AF$78,31,FALSE) -> 39198 | AK24: 0
G25: 22 | H25: 2117 | I25: H B Community School | J25: 2 | K25: 37 | L25: 0 | M25: 0 | N25: 239501 | O25: 0 | P25: 2220 | Q25: 0 | R25: 241721 | S25: 0 | V25: 2117 | W25: PI | X25: H B Community School | Y25: H B Community School | Z25: =VLOOKUP(V25,[1]enrolment!$B$10:$H$78,7,FALSE) -> 2 | AA25: =VLOOKUP(V25,[1]enrolment!$B$10:$S$78,18,FALSE) -> 37 | AB25: =VLOOKUP(V25,[1]enrolment!$B$10:$T$78,19,FALSE) -> 0 | AC25: =VLOOKUP(V25,[1]enrolment!$B$10:$U$78,20,FALSE) -> 0 | AD25: 2117 | AE25: =VLOOKUP(AD25,[1]Funding!$B$10:$N$78,13,FALSE) -> 239501 | AF25: =VLOOKUP(AD25,[1]Funding!$B$10:$S$78,18,FALSE) -> 0 | AG25: =VLOOKUP(AD25,[1]Funding!$B$10:$S$78,14,FALSE) -> 2220 | AH25: =VLOOKUP(AD25,[1]Funding!$B$10:$AE$78,30,FALSE) -> 0 | AI25: 241721 | AJ25: =VLOOKUP(AD25,[1]Funding!$B$10:$AF$78,31,FALSE) -> 241721 | AK25: 0
G26: 23 | H26: 1549 | I26: Holy Cross School | J26: 25 | K26: 336.5 | L26: 1 | M26: 1 | N26: 2178165 | O26: 30630 | P26: 20190 | Q26: 0 | R26: 2228985 | S26: 0 | V26: 1549 | W26: LR | X26: Holy Cross School | Y26: Holy Cross School Inc | Z26: =VLOOKUP(V26,[1]enrolment!$B$10:$H$78,7,FALSE) -> 25 | AA26: =VLOOKUP(V26,[1]enrolment!$B$10:$S$78,18,FALSE) -> 336.5 | AB26: =VLOOKUP(V26,[1]enrolment!$B$10:$T$78,19,FALSE) -> 1 | AC26: =VLOOKUP(V26,[1]enrolment!$B$10:$U$78,20,FALSE) -> 1 | AD26: 1549 | AE26: =VLOOKUP(AD26,[1]Funding!$B$10:$N$78,13,FALSE) -> 2178165 | AF26: =VLOOKUP(AD26,[1]Funding!$B$10:$S$78,18,FALSE) -> 30630 | AG26: =VLOOKUP(AD26,[1]Funding!$B$10:$S$78,14,FALSE) -> 20190 | AH26: =VLOOKUP(AD26,[1]Funding!$B$10:$AE$78,30,FALSE) -> 0 | AI26: 2228985 | AJ26: =VLOOKUP(AD26,[1]Funding!$B$10:$AF$78,31,FALSE) -> 2228985 | AK26: 0
G27: 24 | H27: 1653 | I27: Holy Ghost School | J27: 21 | K27: 227.5 | L27: 2 | M27: 0 | N27: 1472608 | O27: 19000 | P27: 13650 | Q27: 0 | R27: 1505258 | S27: 0 | V27: 1653 | W27: WI | X27: Holy Ghost School | Y27: Holy Ghost School Inc | Z27: =VLOOKUP(V27,[1]enrolment!$B$10:$H$78,7,FALSE) -> 21 | AA27: =VLOOKUP(V27,[1]enrolment!$B$10:$S$78,18,FALSE) -> 227.5 | AB27: =VLOOKUP(V27,[1]enrolment!$B$10:$T$78,19,FALSE) -> 2 | AC27: =VLOOKUP(V27,[1]enrolment!$B$10:$U$78,20,FALSE) -> 0 | AD27: 1653 | AE27: =VLOOKUP(AD27,[1]Funding!$B$10:$N$78,13,FALSE) -> 1472608 | AF27: =VLOOKUP(AD27,[1]Funding!$B$10:$S$78,18,FALSE) -> 19000 | AG27: =VLOOKUP(AD27,[1]Funding!$B$10:$S$78,14,FALSE) -> 13650 | AH27: =VLOOKUP(AD27,[1]Funding!$B$10:$AE$78,30,FALSE) -> 0 | AI27: 1505258 | AJ27: =VLOOKUP(AD27,[1]Funding!$B$10:$AF$78,31,FALSE) -> 1505258 | AK27: 0
G28: 25 | H28: 1523 | I28: Immaculate Heart of Mary School | J28: 20 | K28: 210 | L28: 0 | M28: 0 | N28: 1359330 | O28: 0 | P28: 12600 | Q28: 0 | R28: 1371930 | S28: 0 | V28: 1523 | W28: WI | X28: Immaculate Heart of Mary School | Y28: Immaculate Heart of Mary School Inc | Z28: =VLOOKUP(V28,[1]enrolment!$B$10:$H$78,7,FALSE) -> 20 | AA28: =VLOOKUP(V28,[1]enrolment!$B$10:$S$78,18,FALSE) -> 210 | AB28: =VLOOKUP(V28,[1]enrolment!$B$10:$T$78,19,FALSE) -> 0 | AC28: =VLOOKUP(V28,[1]enrolment!$B$10:$U$78,20,FALSE) -> 0 | AD28: 1523 | AE28: =VLOOKUP(AD28,[1]Funding!$B$10:$N$78,13,FALSE) -> 1359330 | AF28: =VLOOKUP(AD28,[1]Funding!$B$10:$S$78,18,FALSE) -> 0 | AG28: =VLOOKUP(AD28,[1]Funding!$B$10:$S$78,14,FALSE) -> 12600 | AH28: =VLOOKUP(AD28,[1]Funding!$B$10:$AE$78,30,FALSE) -> 0 | AI28: 1371930 | AJ28: =VLOOKUP(AD28,[1]Funding!$B$10:$AF$78,31,FALSE) -> 1371930 | AK28: 0
G29: 26 | H29: 1274 | I29: Immanuel Christian School | J29: 16 | K29: 248 | L29: 3 | M29: 2 | N29: 1605304 | O29: 70760 | P29: 14880 | Q29: 0 | R29: 1690944 | S29: 0 | V29: 1274 | W29: RI | X29: Immanuel Christian School | Y29: Canadian Reformed School Society of Winnipeg Inc | Z29: =VLOOKUP(V29,[1]enrolment!$B$10:$H$78,7,FALSE) -> 16 | AA29: =VLOOKUP(V29,[1]enrolment!$B$10:$S$78,18,FALSE) -> 248 | AB29: =VLOOKUP(V29,[1]enrolment!$B$10:$T$78,19,FALSE) -> 3 | AC29: =VLOOKUP(V29,[1]enrolment!$B$10:$U$78,20,FALSE) -> 2 | AD29: 1274 | AE29: =VLOOKUP(AD29,[1]Funding!$B$10:$N$78,13,FALSE) -> 1605304 | AF29: =VLOOKUP(AD29,[1]Funding!$B$10:$S$78,18,FALSE) -> 70760 | AG29: =VLOOKUP(AD29,[1]Funding!$B$10:$S$78,14,FALSE) -> 14880 | AH29: =VLOOKUP(AD29,[1]Funding!$B$10:$AE$78,30,FALSE) -> 0 | AI29: 1690944 | AJ29: =VLOOKUP(AD29,[1]Funding!$B$10:$AF$78,31,FALSE) -> 1690944 | AK29: 0
G30: 27 | H30: 2308 | I30: Inspired Explorations Learning Community | J30: 6 | K30: 24 | L30: 0.5 | M30: 1 | N30: 155352 | O30: 25880 | P30: 1440 | Q30: 0 | R30: 182672 | S30: 0 | V30: 2308 | W30: WI | X30: Inspired Explorations Learning Community | Y30: Inspired Explorations Learning Community | Z30: =VLOOKUP(V30,[1]enrolment!$B$10:$H$78,7,FALSE) -> 6 | AA30: =VLOOKUP(V30,[1]enrolment!$B$10:$S$78,18,FALSE) -> 24 | AB30: =VLOOKUP(V30,[1]enrolment!$B$10:$T$78,19,FALSE) -> 0.5 | AC30: =VLOOKUP(V30,[1]enrolment!$B$10:$U$78,20,FALSE) -> 1 | AD30: 2308 | AE30: =VLOOKUP(AD30,[1]Funding!$B$10:$N$78,13,FALSE) -> 155352 | AF30: =VLOOKUP(AD30,[1]Funding!$B$10:$S$78,18,FALSE) -> 25880 | AG30: =VLOOKUP(AD30,[1]Funding!$B$10:$S$78,14,FALSE) -> 1440 | AH30: =VLOOKUP(AD30,[1]Funding!$B$10:$AE$78,30,FALSE) -> 0 | AI30: 182672 | AJ30: =VLOOKUP(AD30,[1]Funding!$B$10:$AF$78,31,FALSE) -> 182672 | AK30: 0
G31: 28 | H31: 2291 | I31: Iqra Islamic School | J31: 28 | K31: 378 | L31: 0 | M31: 0 | N31: 2446794 | O31: 0 | P31: 22680 | Q31: 0 | R31: 2469474 | S31: 0 | V31: 2291 | W31: WI | X31: Iqra Islamic School | Y31: Iqra Islamic School | Z31: =VLOOKUP(V31,[1]enrolment!$B$10:$H$78,7,FALSE) -> 28 | AA31: =VLOOKUP(V31,[1]enrolment!$B$10:$S$78,18,FALSE) -> 378 | AB31: =VLOOKUP(V31,[1]enrolment!$B$10:$T$78,19,FALSE) -> 0 | AC31: =VLOOKUP(V31,[1]enrolment!$B$10:$U$78,20,FALSE) -> 0 | AD31: 2291 | AE31: =VLOOKUP(AD31,[1]Funding!$B$10:$N$78,13,FALSE) -> 2446794 | AF31: =VLOOKUP(AD31,[1]Funding!$B$10:$S$78,18,FALSE) -> 0 | AG31: =VLOOKUP(AD31,[1]Funding!$B$10:$S$78,14,FALSE) -> 22680 | AH31: =VLOOKUP(AD31,[1]Funding!$B$10:$AE$78,30,FALSE) -> 0 | AI31: 2469474 | AJ31: =VLOOKUP(AD31,[1]Funding!$B$10:$AF$78,31,FALSE) -> 2469474 | AK31: 0
G32: 29 | H32: 2197 | I32: Kola Community School | J32: 4 | K32: 2 | L32: 0 | M32: 0 | N32: 12946 | O32: 0 | P32: 120 | Q32: 0 | R32: 13066 | S32: 0 | V32: 2197 | W32: FO | X32: Kola Community School | Y32: Kola Community School | Z32: =VLOOKUP(V32,[1]enrolment!$B$10:$H$78,7,FALSE) -> 4 | AA32: =VLOOKUP(V32,[1]enrolment!$B$10:$S$78,18,FALSE) -> 2 | AB32: =VLOOKUP(V32,[1]enrolment!$B$10:$T$78,19,FALSE) -> 0 | AC32: =VLOOKUP(V32,[1]enrolment!$B$10:$U$78,20,FALSE) -> 0 | AD32: 2197 | AE32: =VLOOKUP(AD32,[1]Funding!$B$10:$N$78,13,FALSE) -> 12946 | AF32: =VLOOKUP(AD32,[1]Funding!$B$10:$S$78,18,FALSE) -> 0 | AG32: =VLOOKUP(AD32,[1]Funding!$B$10:$S$78,14,FALSE) -> 120 | AH32: =VLOOKUP(AD32,[1]Funding!$B$10:$AE$78,30,FALSE) -> 0 | AI32: 13066 | AJ32: =VLOOKUP(AD32,[1]Funding!$B$10:$AF$78,31,FALSE) -> 13066 | AK32: 0
G33: 30 | H33: 1998 | I33: Lakeside Christian School | J33: 2 | K33: 63 | L33: 0 | M33: 0 | N33: 407799 | O33: 0 | P33: 3780 | Q33: 0 | R33: 411579 | S33: 0 | V33: 1998 | W33: TM | X33: Lakeside Christian School | Y33: Lakeside Christian School Inc | Z33: =VLOOKUP(V33,[1]enrolment!$B$10:$H$78,7,FALSE) -> 2 | AA33: =VLOOKUP(V33,[1]enrolment!$B$10:$S$78,18,FALSE) -> 63 | AB33: =VLOOKUP(V33,[1]enrolment!$B$10:$T$78,19,FALSE) -> 0 | AC33: =VLOOKUP(V33,[1]enrolment!$B$10:$U$78,20,FALSE) -> 0 | AD33: 1998 | AE33: =VLOOKUP(AD33,[1]Funding!$B$10:$N$78,13,FALSE) -> 407799 | AF33: =VLOOKUP(AD33,[1]Funding!$B$10:$S$78,18,FALSE) -> 0 | AG33: =VLOOKUP(AD33,[1]Funding!$B$10:$S$78,14,FALSE) -> 3780 | AH33: =VLOOKUP(AD33,[1]Funding!$B$10:$AE$78,30,FALSE) -> 0 | AI33: 411579 | AJ33: =VLOOKUP(AD33,[1]Funding!$B$10:$AF$78,31,FALSE) -> 411579 | AK33: 0
G34: 31 | H34: 1981 | I34: Linden Christian School | J34: 59 | K34: 957.5 | L34: 7 | M34: 0 | N34: 6197898 | O34: 66500 | P34: 57450 | Q34: 0 | R34: 6321848 | S34: 0 | V34: 1981 | W34: WI | X34: Linden Christian School | Y34: Linden Christian School Inc | Z34: =VLOOKUP(V34,[1]enrolment!$B$10:$H$78,7,FALSE) -> 59 | AA34: =VLOOKUP(V34,[1]enrolment!$B$10:$S$78,18,FALSE) -> 957.5 | AB34: =VLOOKUP(V34,[1]enrolment!$B$10:$T$78,19,FALSE) -> 7 | AC34: =VLOOKUP(V34,[1]enrolment!$B$10:$U$78,20,FALSE) -> 0 | AD34: 1981 | AE34: =VLOOKUP(AD34,[1]Funding!$B$10:$N$78,13,FALSE) -> 6197898 | AF34: =VLOOKUP(AD34,[1]Funding!$B$10:$S$78,18,FALSE) -> 66500 | AG34: =VLOOKUP(AD34,[1]Funding!$B$10:$S$78,14,FALSE) -> 57450 | AH34: =VLOOKUP(AD34,[1]Funding!$B$10:$AE$78,30,FALSE) -> 0 | AI34: 6321848 | AJ34: =VLOOKUP(AD34,[1]Funding!$B$10:$AF$78,31,FALSE) -> 6321848 | AK34: 0
G35: 32 | H35: 1101 | I35: Mennonite Bretheren Collegiate Inst | J35: 0 | K35: 466 | L35: 0 | M35: 0 | N35: 3016418 | O35: 0 | P35: 27960 | Q35: 0 | R35: 3044378 | S35: 0 | V35: 1101 | W35: WI | X35: Mennonite Bretheren Collegiate Inst | Y35: Mennonite Brethren Church of Manitoba | Z35: =VLOOKUP(V35,[1]enrolment!$B$10:$H$78,7,FALSE) -> 0 | AA35: =VLOOKUP(V35,[1]enrolment!$B$10:$S$78,18,FALSE) -> 466 | AB35: =VLOOKUP(V35,[1]enrolment!$B$10:$T$78,19,FALSE) -> 0 | AC35: =VLOOKUP(V35,[1]enrolment!$B$10:$U$78,20,FALSE) -> 0 | AD35: 1101 | AE35: =VLOOKUP(AD35,[1]Funding!$B$10:$N$78,13,FALSE) -> 3016418 | AF35: =VLOOKUP(AD35,[1]Funding!$B$10:$S$78,18,FALSE) -> 0 | AG35: =VLOOKUP(AD35,[1]Funding!$B$10:$S$78,14,FALSE) -> 27960 | AH35: =VLOOKUP(AD35,[1]Funding!$B$10:$AE$78,30,FALSE) -> 0 | AI35: 3044378 | AJ35: =VLOOKUP(AD35,[1]Funding!$B$10:$AF$78,31,FALSE) -> 3044378 | AK35: 0
G36: 33 | H36: 1345 | I36: Mennonite Collegiate Institute | J36: 0 | K36: 52 | L36: 0 | M36: 0 | N36: 336596 | O36: 0 | P36: 3120 | Q36: 0 | R36: 339716 | S36: 0 | V36: 1345 | W36: BO | X36: Mennonite Collegiate Institute | Y36: Mennonite Collegiate Institute | Z36: =VLOOKUP(V36,[1]enrolment!$B$10:$H$78,7,FALSE) -> 0 | AA36: =VLOOKUP(V36,[1]enrolment!$B$10:$S$78,18,FALSE) -> 52 | AB36: =VLOOKUP(V36,[1]enrolment!$B$10:$T$78,19,FALSE) -> 0 | AC36: =VLOOKUP(V36,[1]enrolment!$B$10:$U$78,20,FALSE) -> 0 | AD36: 1345 | AE36: =VLOOKUP(AD36,[1]Funding!$B$10:$N$78,13,FALSE) -> 336596 | AF36: =VLOOKUP(AD36,[1]Funding!$B$10:$S$78,18,FALSE) -> 0 | AG36: =VLOOKUP(AD36,[1]Funding!$B$10:$S$78,14,FALSE) -> 3120 | AH36: =VLOOKUP(AD36,[1]Funding!$B$10:$AE$78,30,FALSE) -> 0 | AI36: 339716 | AJ36: =VLOOKUP(AD36,[1]Funding!$B$10:$AF$78,31,FALSE) -> 339716 | AK36: 0
G37: 34 | H37: 2042 | I37: Montessori Learning Centre Inc. | J37: =SUMIF($V$5:$V$74,$H37,$Z$5:$Z$74) -> 7 | K37: =SUMIF($V$5:$V$74,$H37,$AA$5:$AA$74) -> 3.5 | L37: =SUMIF($V$5:$V$74,$H37,$AB$5:$AB$74) -> 0 | M37: =SUMIF($V$5:$V$74,$H37,$AC$5:$AC$74) -> 0 | N37: =SUMIF($AD$5:$AD$74,$H37,$AE$5:$AE$78) -> 22656 | O37: =SUMIF($AD$5:$AD$74,$H37,$AF$5:$AF$78) -> 0 | P37: =SUMIF($AD$5:$AD$74,$H37,$AG$5:$AG$78) -> 210 | Q37: =SUMIF($AD$5:$AD$74,$H37,$AH$5:$AH$74) -> 0 | R37: =SUMIF($AD$5:$AD$74,$H37,$AI$5:$AI$74) -> 22866 | S37: 0 | V37: 2042 | W37: WI | X37: Montessori Learning Centre Inc. | Y37: Montessori Learning Centre | Z37: =VLOOKUP(V37,[1]enrolment!$B$10:$H$78,7,FALSE) -> 7 | AA37: =VLOOKUP(V37,[1]enrolment!$B$10:$S$78,18,FALSE) -> 3.5 | AB37: =VLOOKUP(V37,[1]enrolment!$B$10:$T$78,19,FALSE) -> 0 | AC37: =VLOOKUP(V37,[1]enrolment!$B$10:$U$78,20,FALSE) -> 0 | AD37: 2042 | AE37: =VLOOKUP(AD37,[1]Funding!$B$10:$N$78,13,FALSE) -> 22656 | AF37: =VLOOKUP(AD37,[1]Funding!$B$10:$S$78,18,FALSE) -> 0 | AG37: =VLOOKUP(AD37,[1]Funding!$B$10:$S$78,14,FALSE) -> 210 | AH37: =VLOOKUP(AD37,[1]Funding!$B$10:$AE$78,30,FALSE) -> 0 | AI37: 22866 | AJ37: =VLOOKUP(AD37,[1]Funding!$B$10:$AF$78,31,FALSE) -> 22866 | AK37: 0
G38: 35 | H38: 1670 | I38: Morweena | J38: 16 | K38: 183 | L38: 2 | M38: 2 | N38: 1184559 | O38: 61260 | P38: 10980 | Q38: 0 | R38: 1256799 | S38: 0 | V38: 1670 | W38: EV | X38: Morweena (grades 1 - 12) | Y38: Morweena Christian School | Z38: =VLOOKUP(V38,[1]enrolment!$B$10:$H$78,7,FALSE) -> 16 | AA38: =VLOOKUP(V38,[1]enrolment!$B$10:$S$78,18,FALSE) -> 183 | AB38: =VLOOKUP(V38,[1]enrolment!$B$10:$T$78,19,FALSE) -> 2 | AC38: =VLOOKUP(V38,[1]enrolment!$B$10:$U$78,20,FALSE) -> 2 | AD38: 1670 | AE38: =VLOOKUP(AD38,[1]Funding!$B$10:$N$78,13,FALSE) -> 1184559 | AF38: =VLOOKUP(AD38,[1]Funding!$B$10:$S$78,18,FALSE) -> 61260 | AG38: =VLOOKUP(AD38,[1]Funding!$B$10:$S$78,14,FALSE) -> 10980 | AH38: =VLOOKUP(AD38,[1]Funding!$B$10:$AE$78,30,FALSE) -> 0 | AI38: 1256799 | AJ38: =VLOOKUP(AD38,[1]Funding!$B$10:$AF$78,31,FALSE) -> 1256799 | AK38: 0
G39: 36 | H39: 2243 | I39: Northern Shield | J39: 0 | K39: 66 | L39: 1 | M39: 0 | N39: 427218 | O39: 9500 | P39: 3960 | Q39: 0 | R39: 440678 | S39: 0 | V39: 2243 | W39: IN | X39: Northern Shield | Y39: Northern Shield Academy | Z39: =VLOOKUP(V39,[1]enrolment!$B$10:$H$78,7,FALSE) -> 0 | AA39: =VLOOKUP(V39,[1]enrolment!$B$10:$S$78,18,FALSE) -> 66 | AB39: =VLOOKUP(V39,[1]enrolment!$B$10:$T$78,19,FALSE) -> 1 | AC39: =VLOOKUP(V39,[1]enrolment!$B$10:$U$78,20,FALSE) -> 0 | AD39: 2243 | AE39: =VLOOKUP(AD39,[1]Funding!$B$10:$N$78,13,FALSE) -> 427218 | AF39: =VLOOKUP(AD39,[1]Funding!$B$10:$S$78,18,FALSE) -> 9500 | AG39: =VLOOKUP(AD39,[1]Funding!$B$10:$S$78,14,FALSE) -> 3960 | AH39: =VLOOKUP(AD39,[1]Funding!$B$10:$AE$78,30,FALSE) -> 0 | AI39: 440678 | AJ39: =VLOOKUP(AD39,[1]Funding!$B$10:$AF$78,31,FALSE) -> 440678 | AK39: 0
G40: 37 | H40: 2293 | I40: Nova Montessori | J40: 8 | K40: 4 | L40: 0 | M40: 0 | N40: 25892 | O40: 0 | P40: 240 | Q40: 0 | R40: 26132 | S40: 0 | V40: 2293 | W40: PE | X40: Nova Montessori | Y40: Nova Montessori Preschool Inc. | Z40: =VLOOKUP(V40,[1]enrolment!$B$10:$H$78,7,FALSE) -> 8 | AA40: =VLOOKUP(V40,[1]enrolment!$B$10:$S$78,18,FALSE) -> 4 | AB40: =VLOOKUP(V40,[1]enrolment!$B$10:$T$78,19,FALSE) -> 0 | AC40: =VLOOKUP(V40,[1]enrolment!$B$10:$U$78,20,FALSE) -> 0 | AD40: 2293 | AE40: =VLOOKUP(AD40,[1]Funding!$B$10:$N$78,13,FALSE) -> 25892 | AF40: =VLOOKUP(AD40,[1]Funding!$B$10:$S$78,18,FALSE) -> 0 | AG40: =VLOOKUP(AD40,[1]Funding!$B$10:$S$78,14,FALSE) -> 240 | AH40: =VLOOKUP(AD40,[1]Funding!$B$10:$AE$78,30,FALSE) -> 0 | AI40: 26132 | AJ40: =VLOOKUP(AD40,[1]Funding!$B$10:$AF$78,31,FALSE) -> 26132 | AK40: 0
G41: 38 | H41: 2105 | I41: Odanah | J41: 4 | K41: 28 | L41: 0 | M41: 1 | N41: 181244 | O41: 21130 | P41: 1680 | Q41: 0 | R41: 204054 | S41: 0 | V41: 2105 | W41: RO | X41: Odanah | Y41: Odanah Colony School | Z41: =VLOOKUP(V41,[1]enrolment!$B$10:$H$78,7,FALSE) -> 4 | AA41: =VLOOKUP(V41,[1]enrolment!$B$10:$S$78,18,FALSE) -> 28 | AB41: =VLOOKUP(V41,[1]enrolment!$B$10:$T$78,19,FALSE) -> 0 | AC41: =VLOOKUP(V41,[1]enrolment!$B$10:$U$78,20,FALSE) -> 1 | AD41: 2105 | AE41: =VLOOKUP(AD41,[1]Funding!$B$10:$N$78,13,FALSE) -> 181244 | AF41: =VLOOKUP(AD41,[1]Funding!$B$10:$S$78,18,FALSE) -> 21130 | AG41: =VLOOKUP(AD41,[1]Funding!$B$10:$S$78,14,FALSE) -> 1680 | AH41: =VLOOKUP(AD41,[1]Funding!$B$10:$AE$78,30,FALSE) -> 0 | AI41: 204054 | AJ41: =VLOOKUP(AD41,[1]Funding!$B$10:$AF$78,31,FALSE) -> 204054 | AK41: 0
G42: 39 | H42: 1997 | I42: Oholei Torah School | J42: 5 | K42: 13.5 | L42: 0 | M42: 0 | N42: 87386 | O42: 0 | P42: 810 | Q42: 0 | R42: 88196 | S42: 0 | V42: 1997 | W42: SO | X42: Oholei Torah School | Y42: Oholei Torah School | Z42: =VLOOKUP(V42,[1]enrolment!$B$10:$H$78,7,FALSE) -> 5 | AA42: =VLOOKUP(V42,[1]enrolment!$B$10:$S$78,18,FALSE) -> 13.5 | AB42: =VLOOKUP(V42,[1]enrolment!$B$10:$T$78,19,FALSE) -> 0 | AC42: =VLOOKUP(V42,[1]enrolment!$B$10:$U$78,20,FALSE) -> 0 | AD42: 1997 | AE42: =VLOOKUP(AD42,[1]Funding!$B$10:$N$78,13,FALSE) -> 87386 | AF42: =VLOOKUP(AD42,[1]Funding!$B$10:$S$78,18,FALSE) -> 0 | AG42: =VLOOKUP(AD42,[1]Funding!$B$10:$S$78,14,FALSE) -> 810 | AH42: =VLOOKUP(AD42,[1]Funding!$B$10:$AE$78,30,FALSE) -> 0 | AI42: 88196 | AJ42: =VLOOKUP(AD42,[1]Funding!$B$10:$AF$78,31,FALSE) -> 88196 | AK42: 0
G43: 40 | H43: 1241 | I43: Our Lady of Victory School | J43: 18 | K43: 178 | L43: 2 | M43: 0 | N43: 1152194 | O43: 19000 | P43: 10680 | Q43: 0 | R43: 1181874 | S43: 0 | V43: 1241 | W43: WI | X43: Our Lady of Victory School | Y43: Our Lady of Victory School Inc. | Z43: =VLOOKUP(V43,[1]enrolment!$B$10:$H$78,7,FALSE) -> 18 | AA43: =VLOOKUP(V43,[1]enrolment!$B$10:$S$78,18,FALSE) -> 178 | AB43: =VLOOKUP(V43,[1]enrolment!$B$10:$T$78,19,FALSE) -> 2 | AC43: =VLOOKUP(V43,[1]enrolment!$B$10:$U$78,20,FALSE) -> 0 | AD43: 1241 | AE43: =VLOOKUP(AD43,[1]Funding!$B$10:$N$78,13,FALSE) -> 1152194 | AF43: =VLOOKUP(AD43,[1]Funding!$B$10:$S$78,18,FALSE) -> 19000 | AG43: =VLOOKUP(AD43,[1]Funding!$B$10:$S$78,14,FALSE) -> 10680 | AH43: =VLOOKUP(AD43,[1]Funding!$B$10:$AE$78,30,FALSE) -> 0 | AI43: 1181874 | AJ43: =VLOOKUP(AD43,[1]Funding!$B$10:$AF$78,31,FALSE) -> 1181874 | AK43: 0
G44: 41 | H44: 1407 | I44: Pine Creek Colony School | J44: 0 | K44: 15 | L44: 1 | M44: 0 | N44: 97095 | O44: 9500 | P44: 900 | Q44: 0 | R44: 107495 | S44: 0 | V44: 1407 | W44: BE | X44: Pine Creek Colony School | Y44: Pine Creek Colony School | Z44: =VLOOKUP(V44,[1]enrolment!$B$10:$H$78,7,FALSE) -> 0 | AA44: =VLOOKUP(V44,[1]enrolment!$B$10:$S$78,18,FALSE) -> 15 | AB44: =VLOOKUP(V44,[1]enrolment!$B$10:$T$78,19,FALSE) -> 1 | AC44: =VLOOKUP(V44,[1]enrolment!$B$10:$U$78,20,FALSE) -> 0 | AD44: 1407 | AE44: =VLOOKUP(AD44,[1]Funding!$B$10:$N$78,13,FALSE) -> 97095 | AF44: =VLOOKUP(AD44,[1]Funding!$B$10:$S$78,18,FALSE) -> 9500 | AG44: =VLOOKUP(AD44,[1]Funding!$B$10:$S$78,14,FALSE) -> 900 | AH44: =VLOOKUP(AD44,[1]Funding!$B$10:$AE$78,30,FALSE) -> 0 | AI44: 107495 | AJ44: =VLOOKUP(AD44,[1]Funding!$B$10:$AF$78,31,FALSE) -> 107495 | AK44: 0
G45: 42 | H45: 1362 | I45: Poplar Point Colony School | J45: 2 | K45: 29 | L45: 0 | M45: 0 | N45: 187717 | O45: 0 | P45: 1740 | Q45: 0 | R45: 189457 | S45: 0 | V45: 1362 | W45: PR | X45: Poplar Point Colony School | Y45: Poplar Point Colony School | Z45: =VLOOKUP(V45,[1]enrolment!$B$10:$H$78,7,FALSE) -> 2 | AA45: =VLOOKUP(V45,[1]enrolment!$B$10:$S$78,18,FALSE) -> 29 | AB45: =VLOOKUP(V45,[1]enrolment!$B$10:$T$78,19,FALSE) -> 0 | AC45: =VLOOKUP(V45,[1]enrolment!$B$10:$U$78,20,FALSE) -> 0 | AD45: 1362 | AE45: =VLOOKUP(AD45,[1]Funding!$B$10:$N$78,13,FALSE) -> 187717 | AF45: =VLOOKUP(AD45,[1]Funding!$B$10:$S$78,18,FALSE) -> 0 | AG45: =VLOOKUP(AD45,[1]Funding!$B$10:$S$78,14,FALSE) -> 1740 | AH45: =VLOOKUP(AD45,[1]Funding!$B$10:$AE$78,30,FALSE) -> 0 | AI45: 189457 | AJ45: =VLOOKUP(AD45,[1]Funding!$B$10:$AF$78,31,FALSE) -> 189457 | AK45: 0
G46: 43 | H46: 1304 | I46: Prairie Central Adventist Academy | J46: 16 | K46: 186 | L46: 1 | M46: 0 | N46: 1203978 | O46: 9500 | P46: 11160 | Q46: 0 | R46: 1224638 | S46: 0 | V46: 1304 | W46: WI | X46: Prairie Central Adventist Academy | Y46: Manitoba Conference Corp of The Seventh Day Adventist Church | Z46: =VLOOKUP(V46,[1]enrolment!$B$10:$H$78,7,FALSE) -> 16 | AA46: =VLOOKUP(V46,[1]enrolment!$B$10:$S$78,18,FALSE) -> 186 | AB46: =VLOOKUP(V46,[1]enrolment!$B$10:$T$78,19,FALSE) -> 1 | AC46: =VLOOKUP(V46,[1]enrolment!$B$10:$U$78,20,FALSE) -> 0 | AD46: 1304 | AE46: =VLOOKUP(AD46,[1]Funding!$B$10:$N$78,13,FALSE) -> 1203978 | AF46: =VLOOKUP(AD46,[1]Funding!$B$10:$S$78,18,FALSE) -> 9500 | AG46: =VLOOKUP(AD46,[1]Funding!$B$10:$S$78,14,FALSE) -> 11160 | AH46: =VLOOKUP(AD46,[1]Funding!$B$10:$AE$78,30,FALSE) -> 0 | AI46: 1224638 | AJ46: =VLOOKUP(AD46,[1]Funding!$B$10:$AF$78,31,FALSE) -> 1224638 | AK46: 0
G47: 44 | H47: 2331 | I47: Prairie Crossroads School | J47: 17 | K47: 98.5 | L47: 1 | M47: 0 | N47: 637591 | O47: 9500 | P47: 5910 | Q47: 0 | R47: 653001 | S47: 0 | V47: 2331 | W47: WE | X47: Prairie Crossroads School | Y47: Prairie Crossroads School | Z47: =VLOOKUP(V47,[1]enrolment!$B$10:$H$78,7,FALSE) -> 17 | AA47: =VLOOKUP(V47,[1]enrolment!$B$10:$S$78,18,FALSE) -> 98.5 | AB47: =VLOOKUP(V47,[1]enrolment!$B$10:$T$78,19,FALSE) -> 1 | AC47: =VLOOKUP(V47,[1]enrolment!$B$10:$U$78,20,FALSE) -> 0 | AD47: 2331 | AE47: =VLOOKUP(AD47,[1]Funding!$B$10:$N$78,13,FALSE) -> 637591 | AF47: =VLOOKUP(AD47,[1]Funding!$B$10:$S$78,18,FALSE) -> 9500 | AG47: =VLOOKUP(AD47,[1]Funding!$B$10:$S$78,14,FALSE) -> 5910 | AH47: =VLOOKUP(AD47,[1]Funding!$B$10:$AE$78,30,FALSE) -> 0 | AI47: 653001 | AJ47: =VLOOKUP(AD47,[1]Funding!$B$10:$AF$78,31,FALSE) -> 653001 | AK47: 0
G48: 45 | H48: 2326 | I48: Shawenim Abinoojii School | J48: 0 | K48: 19 | L48: 0 | M48: 0 | N48: 122987 | O48: 0 | P48: 1140 | Q48: 0 | R48: 124127 | S48: 0 | V48: 2326 | W48: WI | X48: Shawenim Abinoojii School | Y48: Shawenim Abinoojii School | Z48: =VLOOKUP(V48,[1]enrolment!$B$10:$H$78,7,FALSE) -> 0 | AA48: =VLOOKUP(V48,[1]enrolment!$B$10:$S$78,18,FALSE) -> 19 | AB48: =VLOOKUP(V48,[1]enrolment!$B$10:$T$78,19,FALSE) -> 0 | AC48: =VLOOKUP(V48,[1]enrolment!$B$10:$U$78,20,FALSE) -> 0 | AD48: 2326 | AE48: =VLOOKUP(AD48,[1]Funding!$B$10:$N$78,13,FALSE) -> 122987 | AF48: =VLOOKUP(AD48,[1]Funding!$B$10:$S$78,18,FALSE) -> 0 | AG48: =VLOOKUP(AD48,[1]Funding!$B$10:$S$78,14,FALSE) -> 1140 | AH48: =VLOOKUP(AD48,[1]Funding!$B$10:$AE$78,30,FALSE) -> 0 | AI48: 124127 | AJ48: =VLOOKUP(AD48,[1]Funding!$B$10:$AF$78,31,FALSE) -> 124127 | AK48: 0
G49: 46 | H49: 2219 | I49: Silverwinds Colony School | J49: 1 | K49: 41.5 | L49: 0 | M49: 1 | N49: 268630 | O49: 21130 | P49: 2490 | Q49: 0 | R49: 292250 | S49: 0 | V49: 2219 | W49: PR | X49: Silverwinds Colony School | Y49: Silverwinds Colony School | Z49: =VLOOKUP(V49,[1]enrolment!$B$10:$H$78,7,FALSE) -> 1 | AA49: =VLOOKUP(V49,[1]enrolment!$B$10:$S$78,18,FALSE) -> 41.5 | AB49: =VLOOKUP(V49,[1]enrolment!$B$10:$T$78,19,FALSE) -> 0 | AC49: =VLOOKUP(V49,[1]enrolment!$B$10:$U$78,20,FALSE) -> 1 | AD49: 2219 | AE49: =VLOOKUP(AD49,[1]Funding!$B$10:$N$78,13,FALSE) -> 268630 | AF49: =VLOOKUP(AD49,[1]Funding!$B$10:$S$78,18,FALSE) -> 21130 | AG49: =VLOOKUP(AD49,[1]Funding!$B$10:$S$78,14,FALSE) -> 2490 | AH49: =VLOOKUP(AD49,[1]Funding!$B$10:$AE$78,30,FALSE) -> 0 | AI49: 292250 | AJ49: =VLOOKUP(AD49,[1]Funding!$B$10:$AF$78,31,FALSE) -> 292250 | AK49: 0
G50: 47 | H50: 1942 | I50: Springs Christian Academy | J50: 72 | K50: 651 | L50: 8.5 | M50: 1 | N50: 4213923 | O50: 101880 | P50: 39060 | Q50: 0 | R50: 4354863 | S50: 0 | V50: 1942 | W50: LR | X50: Springs Christian Academy | Y50: Springs of Living Water Christian Academy Inc | Z50: =VLOOKUP(V50,[1]enrolment!$B$10:$H$78,7,FALSE) -> 72 | AA50: =VLOOKUP(V50,[1]enrolment!$B$10:$S$78,18,FALSE) -> 651 | AB50: =VLOOKUP(V50,[1]enrolment!$B$10:$T$78,19,FALSE) -> 8.5 | AC50: =VLOOKUP(V50,[1]enrolment!$B$10:$U$78,20,FALSE) -> 1 | AD50: 1942 | AE50: =VLOOKUP(AD50,[1]Funding!$B$10:$N$78,13,FALSE) -> 4213923 | AF50: =VLOOKUP(AD50,[1]Funding!$B$10:$S$78,18,FALSE) -> 101880 | AG50: =VLOOKUP(AD50,[1]Funding!$B$10:$S$78,14,FALSE) -> 39060 | AH50: =VLOOKUP(AD50,[1]Funding!$B$10:$AE$78,30,FALSE) -> 0 | AI50: 4354863 | AJ50: =VLOOKUP(AD50,[1]Funding!$B$10:$AF$78,31,FALSE) -> 4354863 | AK50: 0
G51: 48 | H51: 2109 | I51: St Aidan's Christian School | J51: 21 | K51: 204.5 | L51: 4 | M51: 0 | N51: 1323729 | O51: 38000 | P51: 12270 | Q51: 0 | R51: 1373999 | S51: 0 | V51: 2109 | W51: WI | X51: St Aidan's Christian School | Y51: St Aidan's Christian School | Z51: =VLOOKUP(V51,[1]enrolment!$B$10:$H$78,7,FALSE) -> 21 | AA51: =VLOOKUP(V51,[1]enrolment!$B$10:$S$78,18,FALSE) -> 204.5 | AB51: =VLOOKUP(V51,[1]enrolment!$B$10:$T$78,19,FALSE) -> 4 | AC51: =VLOOKUP(V51,[1]enrolment!$B$10:$U$78,20,FALSE) -> 0 | AD51: 2109 | AE51: =VLOOKUP(AD51,[1]Funding!$B$10:$N$78,13,FALSE) -> 1323729 | AF51: =VLOOKUP(AD51,[1]Funding!$B$10:$S$78,18,FALSE) -> 38000 | AG51: =VLOOKUP(AD51,[1]Funding!$B$10:$S$78,14,FALSE) -> 12270 | AH51: =VLOOKUP(AD51,[1]Funding!$B$10:$AE$78,30,FALSE) -> 0 | AI51: 1373999 | AJ51: =VLOOKUP(AD51,[1]Funding!$B$10:$AF$78,31,FALSE) -> 1373999 | AK51: 0
G52: 49 | H52: 1087 | I52: St Alphonsus School | J52: 26 | K52: 222 | L52: 3.5 | M52: 1 | N52: 1437006 | O52: 54380 | P52: 13320 | Q52: 0 | R52: 1504706 | S52: 0 | V52: 1087 | W52: RI | X52: St Alphonsus School | Y52: St Alphonsus School Inc | Z52: =VLOOKUP(V52,[1]enrolment!$B$10:$H$78,7,FALSE) -> 26 | AA52: =VLOOKUP(V52,[1]enrolment!$B$10:$S$78,18,FALSE) -> 222 | AB52: =VLOOKUP(V52,[1]enrolment!$B$10:$T$78,19,FALSE) -> 3.5 | AC52: =VLOOKUP(V52,[1]enrolment!$B$10:$U$78,20,FALSE) -> 1 | AD52: 1087 | AE52: =VLOOKUP(AD52,[1]Funding!$B$10:$N$78,13,FALSE) -> 1437006 | AF52: =VLOOKUP(AD52,[1]Funding!$B$10:$S$78,18,FALSE) -> 54380 | AG52: =VLOOKUP(AD52,[1]Funding!$B$10:$S$78,14,FALSE) -> 13320 | AH52: =VLOOKUP(AD52,[1]Funding!$B$10:$AE$78,30,FALSE) -> 0 | AI52: 1504706 | AJ52: =VLOOKUP(AD52,[1]Funding!$B$10:$AF$78,31,FALSE) -> 1504706 | AK52: 0
G53: 50 | H53: 1257 | I53: St Boniface Diocesan High School | J53: 0 | K53: 215 | L53: 2 | M53: 1 | N53: 1391695 | O53: 40130 | P53: 12900 | Q53: 0 | R53: 1444725 | S53: 0 | V53: 1257 | W53: LR | X53: St Boniface Diocesan High School | Y53: St Boniface Diocesan High School Inc | Z53: =VLOOKUP(V53,[1]enrolment!$B$10:$H$78,7,FALSE) -> 0 | AA53: =VLOOKUP(V53,[1]enrolment!$B$10:$S$78,18,FALSE) -> 215 | AB53: =VLOOKUP(V53,[1]enrolment!$B$10:$T$78,19,FALSE) -> 2 | AC53: =VLOOKUP(V53,[1]enrolment!$B$10:$U$78,20,FALSE) -> 1 | AD53: 1257 | AE53: =VLOOKUP(AD53,[1]Funding!$B$10:$N$78,13,FALSE) -> 1391695 | AF53: =VLOOKUP(AD53,[1]Funding!$B$10:$S$78,18,FALSE) -> 40130 | AG53: =VLOOKUP(AD53,[1]Funding!$B$10:$S$78,14,FALSE) -> 12900 | AH53: =VLOOKUP(AD53,[1]Funding!$B$10:$AE$78,30,FALSE) -> 0 | AI53: 1444725 | AJ53: =VLOOKUP(AD53,[1]Funding!$B$10:$AF$78,31,FALSE) -> 1444725 | AK53: 0
G54: 51 | H54: 1244 | I54: St Charles Interparochial School | J54: 42 | K54: 283 | L54: 1 | M54: 1 | N54: 1831859 | O54: 30630 | P54: 16980 | Q54: 0 | R54: 1879469 | S54: 0 | V54: 1244 | W54: ST | X54: St Charles Interparochial School | Y54: St Charles Interparochial School Inc. | Z54: =VLOOKUP(V54,[1]enrolment!$B$10:$H$78,7,FALSE) -> 42 | AA54: =VLOOKUP(V54,[1]enrolment!$B$10:$S$78,18,FALSE) -> 283 | AB54: =VLOOKUP(V54,[1]enrolment!$B$10:$T$78,19,FALSE) -> 1 | AC54: =VLOOKUP(V54,[1]enrolment!$B$10:$U$78,20,FALSE) -> 1 | AD54: 1244 | AE54: =VLOOKUP(AD54,[1]Funding!$B$10:$N$78,13,FALSE) -> 1831859 | AF54: =VLOOKUP(AD54,[1]Funding!$B$10:$S$78,18,FALSE) -> 30630 | AG54: =VLOOKUP(AD54,[1]Funding!$B$10:$S$78,14,FALSE) -> 16980 | AH54: =VLOOKUP(AD54,[1]Funding!$B$10:$AE$78,30,FALSE) -> 0 | AI54: 1879469 | AJ54: =VLOOKUP(AD54,[1]Funding!$B$10:$AF$78,31,FALSE) -> 1879469 | AK54: 0
G55: 52 | H55: 1430 | I55: St Edward's School | J55: 20 | K55: 174 | L55: 0.6 | M55: 0 | N55: 1126302 | O55: 5700 | P55: 10440 | Q55: 0 | R55: 1142442 | S55: 0 | V55: 1430 | W55: WI | X55: St Edward's School | Y55: St Edward's School Inc | Z55: =VLOOKUP(V55,[1]enrolment!$B$10:$H$78,7,FALSE) -> 20 | AA55: =VLOOKUP(V55,[1]enrolment!$B$10:$S$78,18,FALSE) -> 174 | AB55: =VLOOKUP(V55,[1]enrolment!$B$10:$T$78,19,FALSE) -> 0.6 | AC55: =VLOOKUP(V55,[1]enrolment!$B$10:$U$78,20,FALSE) -> 0 | AD55: 1430 | AE55: =VLOOKUP(AD55,[1]Funding!$B$10:$N$78,13,FALSE) -> 1126302 | AF55: =VLOOKUP(AD55,[1]Funding!$B$10:$S$78,18,FALSE) -> 5700 | AG55: =VLOOKUP(AD55,[1]Funding!$B$10:$S$78,14,FALSE) -> 10440 | AH55: =VLOOKUP(AD55,[1]Funding!$B$10:$AE$78,30,FALSE) -> 0 | AI55: 1142442 | AJ55: =VLOOKUP(AD55,[1]Funding!$B$10:$AF$78,31,FALSE) -> 1142442 | AK55: 0
G56: 53 | H56: 1791 | I56: St Emile School | J56: 45 | K56: 380.5 | L56: 6 | M56: 2 | N56: 2462977 | O56: 99260 | P56: 22830 | Q56: 0 | R56: 2585067 | S56: 0 | V56: 1791 | W56: LR | X56: St Emile School | Y56: St Emile School Inc | Z56: =VLOOKUP(V56,[1]enrolment!$B$10:$H$78,7,FALSE) -> 45 | AA56: =VLOOKUP(V56,[1]enrolment!$B$10:$S$78,18,FALSE) -> 380.5 | AB56: =VLOOKUP(V56,[1]enrolment!$B$10:$T$78,19,FALSE) -> 6 | AC56: =VLOOKUP(V56,[1]enrolment!$B$10:$U$78,20,FALSE) -> 2 | AD56: 1791 | AE56: =VLOOKUP(AD56,[1]Funding!$B$10:$N$78,13,FALSE) -> 2462977 | AF56: =VLOOKUP(AD56,[1]Funding!$B$10:$S$78,18,FALSE) -> 99260 | AG56: =VLOOKUP(AD56,[1]Funding!$B$10:$S$78,14,FALSE) -> 22830 | AH56: =VLOOKUP(AD56,[1]Funding!$B$10:$AE$78,30,FALSE) -> 0 | AI56: 2585067 | AJ56: =VLOOKUP(AD56,[1]Funding!$B$10:$AF$78,31,FALSE) -> 2585067 | AK56: 0
G57: 54 | H57: 1562 | I57: St Gerard School | J57: 20 | K57: 187 | L57: 2.3 | M57: 0 | N57: 1210451 | O57: 21850 | P57: 11220 | Q57: 0 | R57: 1243521 | S57: 0 | V57: 1562 | W57: WI | X57: St Gerard School | Y57: St Gerard School Inc | Z57: =VLOOKUP(V57,[1]enrolment!$B$10:$H$78,7,FALSE) -> 20 | AA57: =VLOOKUP(V57,[1]enrolment!$B$10:$S$78,18,FALSE) -> 187 | AB57: =VLOOKUP(V57,[1]enrolment!$B$10:$T$78,19,FALSE) -> 2.3 | AC57: =VLOOKUP(V57,[1]enrolment!$B$10:$U$78,20,FALSE) -> 0 | AD57: 1562 | AE57: =VLOOKUP(AD57,[1]Funding!$B$10:$N$78,13,FALSE) -> 1210451 | AF57: =VLOOKUP(AD57,[1]Funding!$B$10:$S$78,18,FALSE) -> 21850 | AG57: =VLOOKUP(AD57,[1]Funding!$B$10:$S$78,14,FALSE) -> 11220 | AH57: =VLOOKUP(AD57,[1]Funding!$B$10:$AE$78,30,FALSE) -> 0 | AI57: 1243521 | AJ57: =VLOOKUP(AD57,[1]Funding!$B$10:$AF$78,31,FALSE) -> 1243521 | AK57: 0
G58: 55 | H58: 1829 | I58: St Ignatius School | J58: 24 | K58: 229 | L58: 2 | M58: 1 | N58: 1482317 | O58: 40130 | P58: 13740 | Q58: 0 | R58: 1536187 | S58: 0 | V58: 1829 | W58: WI | X58: St Ignatius School | Y58: St Ignatius School Inc | Z58: =VLOOKUP(V58,[1]enrolment!$B$10:$H$78,7,FALSE) -> 24 | AA58: =VLOOKUP(V58,[1]enrolment!$B$10:$S$78,18,FALSE) -> 229 | AB58: =VLOOKUP(V58,[1]enrolment!$B$10:$T$78,19,FALSE) -> 2 | AC58: =VLOOKUP(V58,[1]enrolment!$B$10:$U$78,20,FALSE) -> 1 | AD58: 1829 | AE58: =VLOOKUP(AD58,[1]Funding!$B$10:$N$78,13,FALSE) -> 1482317 | AF58: =VLOOKUP(AD58,[1]Funding!$B$10:$S$78,18,FALSE) -> 40130 | AG58: =VLOOKUP(AD58,[1]Funding!$B$10:$S$78,14,FALSE) -> 13740 | AH58: =VLOOKUP(AD58,[1]Funding!$B$10:$AE$78,30,FALSE) -> 0 | AI58: 1536187 | AJ58: =VLOOKUP(AD58,[1]Funding!$B$10:$AF$78,31,FALSE) -> 1536187 | AK58: 0
G59: 56 | H59: 1729 | I59: St John Brebeuf School | J59: 47 | K59: 269.5 | L59: 1 | M59: 0 | N59: 1744474 | O59: 9500 | P59: 16170 | Q59: 0 | R59: 1770144 | S59: 0 | V59: 1729 | W59: WI | X59: St John Brebeuf School | Y59: St John Brebeuf School Inc | Z59: =VLOOKUP(V59,[1]enrolment!$B$10:$H$78,7,FALSE) -> 47 | AA59: =VLOOKUP(V59,[1]enrolment!$B$10:$S$78,18,FALSE) -> 269.5 | AB59: =VLOOKUP(V59,[1]enrolment!$B$10:$T$78,19,FALSE) -> 1 | AC59: =VLOOKUP(V59,[1]enrolment!$B$10:$U$78,20,FALSE) -> 0 | AD59: 1729 | AE59: =VLOOKUP(AD59,[1]Funding!$B$10:$N$78,13,FALSE) -> 1744474 | AF59: =VLOOKUP(AD59,[1]Funding!$B$10:$S$78,18,FALSE) -> 9500 | AG59: =VLOOKUP(AD59,[1]Funding!$B$10:$S$78,14,FALSE) -> 16170 | AH59: =VLOOKUP(AD59,[1]Funding!$B$10:$AE$78,30,FALSE) -> 0 | AI59: 1770144 | AJ59: =VLOOKUP(AD59,[1]Funding!$B$10:$AF$78,31,FALSE) -> 1770144 | AK59: 0
G60: 57 | H60: 1155 | I60: St John's-Ravenscourt School | J60: 39 | K60: 864.5 | L60: 0 | M60: 0 | N60: 5236457 | O60: 0 | P60: 51870 | Q60: 0 | R60: 5288327 | S60: 0 | V60: 1155 | W60: PE | X60: St John's-Ravenscourt School | Y60: St John's-Ravenscourt School | Z60: =VLOOKUP(V60,[1]enrolment!$B$10:$H$78,7,FALSE) -> 39 | AA60: =VLOOKUP(V60,[1]enrolment!$B$10:$S$78,18,FALSE) -> 864.5 | AB60: =VLOOKUP(V60,[1]enrolment!$B$10:$T$78,19,FALSE) -> 0 | AC60: =VLOOKUP(V60,[1]enrolment!$B$10:$U$78,20,FALSE) -> 0 | AD60: 1155 | AE60: =VLOOKUP(AD60,[1]Funding!$B$10:$N$78,13,FALSE) -> 5236457 | AF60: =VLOOKUP(AD60,[1]Funding!$B$10:$S$78,18,FALSE) -> 0 | AG60: =VLOOKUP(AD60,[1]Funding!$B$10:$S$78,14,FALSE) -> 51870 | AH60: =VLOOKUP(AD60,[1]Funding!$B$10:$AE$78,30,FALSE) -> 0 | AI60: 5288327 | AJ60: =VLOOKUP(AD60,[1]Funding!$B$10:$AF$78,31,FALSE) -> 5288327 | AK60: 0
G61: 58 | H61: 1756 | I61: St Joseph the Worker School | J61: 25 | K61: 146.5 | L61: 1 | M61: 0 | N61: 948295 | O61: 9500 | P61: 8790 | Q61: 0 | R61: 966585 | S61: 0 | V61: 1756 | W61: RI | X61: St Joseph the Worker School | Y61: St Joseph The Worker School Inc | Z61: =VLOOKUP(V61,[1]enrolment!$B$10:$H$78,7,FALSE) -> 25 | AA61: =VLOOKUP(V61,[1]enrolment!$B$10:$S$78,18,FALSE) -> 146.5 | AB61: =VLOOKUP(V61,[1]enrolment!$B$10:$T$78,19,FALSE) -> 1 | AC61: =VLOOKUP(V61,[1]enrolment!$B$10:$U$78,20,FALSE) -> 0 | AD61: 1756 | AE61: =VLOOKUP(AD61,[1]Funding!$B$10:$N$78,13,FALSE) -> 948295 | AF61: =VLOOKUP(AD61,[1]Funding!$B$10:$S$78,18,FALSE) -> 9500 | AG61: =VLOOKUP(AD61,[1]Funding!$B$10:$S$78,14,FALSE) -> 8790 | AH61: =VLOOKUP(AD61,[1]Funding!$B$10:$AE$78,30,FALSE) -> 0 | AI61: 966585 | AJ61: =VLOOKUP(AD61,[1]Funding!$B$10:$AF$78,31,FALSE) -> 966585 | AK61: 0
G62: 59 | H62: 1478 | I62: St Mary's Academy | J62: 0 | K62: 583 | L62: 0 | M62: 0 | N62: 3754505 | O62: 0 | P62: 34980 | Q62: 0 | R62: 3789485 | S62: 0 | V62: 1478 | W62: WI | X62: St Mary's Academy | Y62: St Mary's Academy Inc | Z62: =VLOOKUP(V62,[1]enrolment!$B$10:$H$78,7,FALSE) -> 0 | AA62: =VLOOKUP(V62,[1]enrolment!$B$10:$S$78,18,FALSE) -> 583 | AB62: =VLOOKUP(V62,[1]enrolment!$B$10:$T$78,19,FALSE) -> 0 | AC62: =VLOOKUP(V62,[1]enrolment!$B$10:$U$78,20,FALSE) -> 0 | AD62: 1478 | AE62: =VLOOKUP(AD62,[1]Funding!$B$10:$N$78,13,FALSE) -> 3754505 | AF62: =VLOOKUP(AD62,[1]Funding!$B$10:$S$78,18,FALSE) -> 0 | AG62: =VLOOKUP(AD62,[1]Funding!$B$10:$S$78,14,FALSE) -> 34980 | AH62: =VLOOKUP(AD62,[1]Funding!$B$10:$AE$78,30,FALSE) -> 0 | AI62: 3789485 | AJ62: =VLOOKUP(AD62,[1]Funding!$B$10:$AF$78,31,FALSE) -> 3789485 | AK62: 0
G63: 60 | H63: 1232 | I63: St Maurice School | J63: 57 | K63: 660.5 | L63: 8.1 | M63: 0.537624231 | N63: 4275417 | O63: 88310 | P63: 39630 | Q63: 0 | R63: 4403357 | S63: 0 | V63: 1232 | W63: PE | X63: St Maurice School | Y63: St Maurice School Inc | Z63: =VLOOKUP(V63,[1]enrolment!$B$10:$H$78,7,FALSE) -> 57 | AA63: =VLOOKUP(V63,[1]enrolment!$B$10:$S$78,18,FALSE) -> 660.5 | AB63: =VLOOKUP(V63,[1]enrolment!$B$10:$T$78,19,FALSE) -> 8.1 | AC63: =VLOOKUP(V63,[1]enrolment!$B$10:$U$78,20,FALSE) -> 0.537624231 | AD63: 1232 | AE63: =VLOOKUP(AD63,[1]Funding!$B$10:$N$78,13,FALSE) -> 4275417 | AF63: =VLOOKUP(AD63,[1]Funding!$B$10:$S$78,18,FALSE) -> 88310 | AG63: =VLOOKUP(AD63,[1]Funding!$B$10:$S$78,14,FALSE) -> 39630 | AH63: =VLOOKUP(AD63,[1]Funding!$B$10:$AE$78,30,FALSE) -> 0 | AI63: 4403357 | AJ63: =VLOOKUP(AD63,[1]Funding!$B$10:$AF$78,31,FALSE) -> 4403357 | AK63: 0
G64: 61 | H64: 1832 | I64: St Paul's High School | J64: 0 | K64: 619 | L64: 0 | M64: 0 | N64: 4006787 | O64: 0 | P64: 37140 | Q64: 0 | R64: 4043927 | S64: 0 | V64: 1832 | W64: PE | X64: St Paul's High School | Y64: St Paul's High School Inc | Z64: =VLOOKUP(V64,[1]enrolment!$B$10:$H$78,7,FALSE) -> 0 | AA64: =VLOOKUP(V64,[1]enrolment!$B$10:$S$78,18,FALSE) -> 619 | AB64: =VLOOKUP(V64,[1]enrolment!$B$10:$T$78,19,FALSE) -> 0 | AC64: =VLOOKUP(V64,[1]enrolment!$B$10:$U$78,20,FALSE) -> 0 | AD64: 1832 | AE64: =VLOOKUP(AD64,[1]Funding!$B$10:$N$78,13,FALSE) -> 4006787 | AF64: =VLOOKUP(AD64,[1]Funding!$B$10:$S$78,18,FALSE) -> 0 | AG64: =VLOOKUP(AD64,[1]Funding!$B$10:$S$78,14,FALSE) -> 37140 | AH64: =VLOOKUP(AD64,[1]Funding!$B$10:$AE$78,30,FALSE) -> 0 | AI64: 4043927 | AJ64: =VLOOKUP(AD64,[1]Funding!$B$10:$AF$78,31,FALSE) -> 4043927 | AK64: 0
G65: 62 | H65: 1453 | I65: Steinbach Christian School | J65: 20 | K65: 349 | L65: 0 | M65: 0 | N65: 2259077 | O65: 0 | P65: 20940 | Q65: 0 | R65: 2280017 | S65: 0 | V65: 1453 | W65: HA | X65: Steinbach Christian School | Y65: Steinbach Christain High School | Z65: =VLOOKUP(V65,[1]enrolment!$B$10:$H$78,7,FALSE) -> 20 | AA65: =VLOOKUP(V65,[1]enrolment!$B$10:$S$78,18,FALSE) -> 349 | AB65: =VLOOKUP(V65,[1]enrolment!$B$10:$T$78,19,FALSE) -> 0 | AC65: =VLOOKUP(V65,[1]enrolment!$B$10:$U$78,20,FALSE) -> 0 | AD65: 1453 | AE65: =VLOOKUP(AD65,[1]Funding!$B$10:$N$78,13,FALSE) -> 2259077 | AF65: =VLOOKUP(AD65,[1]Funding!$B$10:$S$78,18,FALSE) -> 0 | AG65: =VLOOKUP(AD65,[1]Funding!$B$10:$S$78,14,FALSE) -> 20940 | AH65: =VLOOKUP(AD65,[1]Funding!$B$10:$AE$78,30,FALSE) -> 0 | AI65: 2280017 | AJ65: =VLOOKUP(AD65,[1]Funding!$B$10:$AF$78,31,FALSE) -> 2280017 | AK65: 0
G66: 63 | H66: 1962 | I66: The King's School | J66: 39 | K66: 305.5 | L66: 0 | M66: 0 | N66: 1977502 | O66: 0 | P66: 18330 | Q66: 0 | R66: 1995832 | S66: 0 | V66: 1962 | W66: RI | X66: The King's School | Y66: King's School Inc | Z66: =VLOOKUP(V66,[1]enrolment!$B$10:$H$78,7,FALSE) -> 39 | AA66: =VLOOKUP(V66,[1]enrolment!$B$10:$S$78,18,FALSE) -> 305.5 | AB66: =VLOOKUP(V66,[1]enrolment!$B$10:$T$78,19,FALSE) -> 0 | AC66: =VLOOKUP(V66,[1]enrolment!$B$10:$U$78,20,FALSE) -> 0 | AD66: 1962 | AE66: =VLOOKUP(AD66,[1]Funding!$B$10:$N$78,13,FALSE) -> 1977502 | AF66: =VLOOKUP(AD66,[1]Funding!$B$10:$S$78,18,FALSE) -> 0 | AG66: =VLOOKUP(AD66,[1]Funding!$B$10:$S$78,14,FALSE) -> 18330 | AH66: =VLOOKUP(AD66,[1]Funding!$B$10:$AE$78,30,FALSE) -> 0 | AI66: 1995832 | AJ66: =VLOOKUP(AD66,[1]Funding!$B$10:$AF$78,31,FALSE) -> 1995832 | AK66: 0
G67: 64 | H67: 1980 | I67: The Laureate Academy | J67: 0 | K67: 83 | L67: 6 | M67: 0 | N67: 537259 | O67: 57000 | P67: 4980 | Q67: 0 | R67: 599239 | S67: 0 | V67: 1980 | W67: ST | X67: The Laureate Academy | Y67: The Laureate Academy | Z67: =VLOOKUP(V67,[1]enrolment!$B$10:$H$78,7,FALSE) -> 0 | AA67: =VLOOKUP(V67,[1]enrolment!$B$10:$S$78,18,FALSE) -> 83 | AB67: =VLOOKUP(V67,[1]enrolment!$B$10:$T$78,19,FALSE) -> 6 | AC67: =VLOOKUP(V67,[1]enrolment!$B$10:$U$78,20,FALSE) -> 0 | AD67: 1980 | AE67: =VLOOKUP(AD67,[1]Funding!$B$10:$N$78,13,FALSE) -> 537259 | AF67: =VLOOKUP(AD67,[1]Funding!$B$10:$S$78,18,FALSE) -> 57000 | AG67: =VLOOKUP(AD67,[1]Funding!$B$10:$S$78,14,FALSE) -> 4980 | AH67: =VLOOKUP(AD67,[1]Funding!$B$10:$AE$78,30,FALSE) -> 0 | AI67: 599239 | AJ67: =VLOOKUP(AD67,[1]Funding!$B$10:$AF$78,31,FALSE) -> 599239 | AK67: 0
G68: 65 | H68: 1690 | I68: University of Winnipeg Collegiate | J68: 0 | K68: 324.2 | L68: 0 | M68: 0 | N68: 2098547 | O68: 0 | P68: 19452 | Q68: 0 | R68: 2117999 | S68: 0 | V68: 1690 | W68: WI | X68: University of Winnipeg Collegiate | Y68: University of Winnipeg Collegiate | Z68: =VLOOKUP(V68,[1]enrolment!$B$10:$H$78,7,FALSE) -> 0 | AA68: =VLOOKUP(V68,[1]enrolment!$B$10:$S$78,18,FALSE) -> 324.2 | AB68: =VLOOKUP(V68,[1]enrolment!$B$10:$T$78,19,FALSE) -> 0 | AC68: =VLOOKUP(V68,[1]enrolment!$B$10:$U$78,20,FALSE) -> 0 | AD68: 1690 | AE68: =VLOOKUP(AD68,[1]Funding!$B$10:$N$78,13,FALSE) -> 2098547 | AF68: =VLOOKUP(AD68,[1]Funding!$B$10:$S$78,18,FALSE) -> 0 | AG68: =VLOOKUP(AD68,[1]Funding!$B$10:$S$78,14,FALSE) -> 19452 | AH68: =VLOOKUP(AD68,[1]Funding!$B$10:$AE$78,30,FALSE) -> 0 | AI68: 2117999 | AJ68: =VLOOKUP(AD68,[1]Funding!$B$10:$AF$78,31,FALSE) -> 2117999 | AK68: 0
G69: 66 | H69: 2338 | I69: Western Canada Hockey Academy | J69: =SUMIF($V$5:$V$74,$H69,$Z$5:$Z$74) -> 0 | K69: =SUMIF($V$5:$V$74,$H69,$AA$5:$AA$74) -> 0 | L69: =SUMIF($V$5:$V$74,$H69,$AB$5:$AB$74) -> 0 | M69: =SUMIF($V$5:$V$74,$H69,$AC$5:$AC$74) -> 0 | N69: =SUMIF($AD$5:$AD$74,$H69,$AE$5:$AE$78) -> 0 | O69: =SUMIF($AD$5:$AD$74,$H69,$AF$5:$AF$78) -> 0 | P69: =SUMIF($AD$5:$AD$74,$H69,$AG$5:$AG$78) -> 0 | Q69: =SUMIF($AD$5:$AD$74,$H69,$AH$5:$AH$74) -> 0 | R69: =SUMIF($AD$5:$AD$74,$H69,$AI$5:$AI$74) -> 0 | S69: 0 | V69: 2338 | W69: BR | X69: Western Canada Hockey Academy | Y69: Western Canada Hockey Academy | AD69: 2338 | AI69: 0 | AK69: 0
G70: 67 | H70: 1285 | I70: Westgate Mennonite Collegiate | J70: 0 | K70: 330 | L70: 0 | M70: 0 | N70: 2136090 | O70: 0 | P70: 19800 | Q70: 0 | R70: 2155890 | S70: =+N70+O70+P70+Q70-R70 -> 0 | V70: 1285 | W70: WI | X70: Westgate Mennonite Collegiate | Y70: Mennonite Educational Society of Manitoba | Z70: =VLOOKUP(V70,[1]enrolment!$B$10:$H$78,7,FALSE) -> 0 | AA70: =VLOOKUP(V70,[1]enrolment!$B$10:$S$78,18,FALSE) -> 330 | AB70: =VLOOKUP(V70,[1]enrolment!$B$10:$T$78,19,FALSE) -> 0 | AC70: =VLOOKUP(V70,[1]enrolment!$B$10:$U$78,20,FALSE) -> 0 | AD70: 1285 | AE70: =VLOOKUP(AD70,[1]Funding!$B$10:$N$78,13,FALSE) -> 2136090 | AF70: =VLOOKUP(AD70,[1]Funding!$B$10:$S$78,18,FALSE) -> 0 | AG70: =VLOOKUP(AD70,[1]Funding!$B$10:$S$78,14,FALSE) -> 19800 | AH70: =VLOOKUP(AD70,[1]Funding!$B$10:$AE$78,30,FALSE) -> 0 | AI70: =SUM(AE70:AH70) -> 2155890 | AJ70: =VLOOKUP(AD70,[1]Funding!$B$10:$AF$78,31,FALSE) -> 2155890 | AK70: 0
G71: 68 | H71: 1983 | I71: Westpark School | J71: 10 | K71: 185.5 | L71: 1 | M71: 1 | N71: 1200742 | O71: 30630 | P71: 11130 | Q71: 0 | R71: 1242502 | S71: 0 | V71: 1983 | W71: PO | X71: Westpark School | Y71: Westpark School Inc | Z71: =VLOOKUP(V71,[1]enrolment!$B$10:$H$78,7,FALSE) -> 10 | AA71: =VLOOKUP(V71,[1]enrolment!$B$10:$S$78,18,FALSE) -> 185.5 | AB71: =VLOOKUP(V71,[1]enrolment!$B$10:$T$78,19,FALSE) -> 1 | AC71: =VLOOKUP(V71,[1]enrolment!$B$10:$U$78,20,FALSE) -> 1 | AD71: 1983 | AE71: =VLOOKUP(AD71,[1]Funding!$B$10:$N$78,13,FALSE) -> 1200742 | AF71: =VLOOKUP(AD71,[1]Funding!$B$10:$S$78,18,FALSE) -> 30630 | AG71: =VLOOKUP(AD71,[1]Funding!$B$10:$S$78,14,FALSE) -> 11130 | AH71: =VLOOKUP(AD71,[1]Funding!$B$10:$AE$78,30,FALSE) -> 0 | AI71: 1242502 | AJ71: =VLOOKUP(AD71,[1]Funding!$B$10:$AF$78,31,FALSE) -> 1242502 | AK71: 0
G72: 69 | H72: 1988 | I72: Wingham School | J72: 2 | K72: 15 | L72: 0 | M72: 0 | N72: 97095 | O72: 0 | P72: 900 | Q72: 0 | R72: 97995 | S72: 0 | V72: 1988 | W72: PR | X72: Wingham School | Y72: Wingham H.B. School | Z72: =VLOOKUP(V72,[1]enrolment!$B$10:$H$78,7,FALSE) -> 2 | AA72: =VLOOKUP(V72,[1]enrolment!$B$10:$S$78,18,FALSE) -> 15 | AB72: =VLOOKUP(V72,[1]enrolment!$B$10:$T$78,19,FALSE) -> 0 | AC72: =VLOOKUP(V72,[1]enrolment!$B$10:$U$78,20,FALSE) -> 0 | AD72: 1988 | AE72: =VLOOKUP(AD72,[1]Funding!$B$10:$N$78,13,FALSE) -> 97095 | AF72: =VLOOKUP(AD72,[1]Funding!$B$10:$S$78,18,FALSE) -> 0 | AG72: =VLOOKUP(AD72,[1]Funding!$B$10:$S$78,14,FALSE) -> 900 | AH72: =VLOOKUP(AD72,[1]Funding!$B$10:$AE$78,30,FALSE) -> 0 | AI72: 97995 | AJ72: =VLOOKUP(AD72,[1]Funding!$B$10:$AF$78,31,FALSE) -> 97995 | AK72: 0
G73: 70 | H73: 1242 | I73: Winnipeg Mennonite Elementary Schools | J73: 37 | K73: 302 | L73: 0 | M73: 0 | N73: 1954846 | O73: 0 | P73: 18120 | Q73: 0 | R73: 1972966 | S73: 0 | V73: 1242 | W73: ST | X73: Winnipeg Mennonite Elementary Schools | Y73: Winnipeg Mennonite Elementary Schools Inc | Z73: =VLOOKUP(V73,[1]enrolment!$B$10:$H$78,7,FALSE) -> 37 | AA73: =VLOOKUP(V73,[1]enrolment!$B$10:$S$78,18,FALSE) -> 302 | AB73: =VLOOKUP(V73,[1]enrolment!$B$10:$T$78,19,FALSE) -> 0 | AC73: =VLOOKUP(V73,[1]enrolment!$B$10:$U$78,20,FALSE) -> 0 | AD73: 1242 | AE73: =VLOOKUP(AD73,[1]Funding!$B$10:$N$78,13,FALSE) -> 1954846 | AF73: =VLOOKUP(AD73,[1]Funding!$B$10:$S$78,18,FALSE) -> 0 | AG73: =VLOOKUP(AD73,[1]Funding!$B$10:$S$78,14,FALSE) -> 18120 | AH73: =VLOOKUP(AD73,[1]Funding!$B$10:$AE$78,30,FALSE) -> 0 | AI73: 1972966 | AJ73: =VLOOKUP(AD73,[1]Funding!$B$10:$AF$78,31,FALSE) -> 1972966 | AK73: =AI73-AJ73 -> 0
G74: =+G73+1 -> 71 | H74: 1961 | I74: Winnipeg South Academy | J74: 9 | K74: 12.5 | L74: 0 | M74: 0 | N74: 80913 | O74: 0 | P74: 750 | Q74: 0 | R74: 81663 | S74: 0 | V74: 1961 | W74: PE | X74: Winnipeg South Academy | Y74: Kiddie Kampus Inc | Z74: =VLOOKUP(V74,[1]enrolment!$B$10:$H$78,7,FALSE) -> 9 | AA74: =VLOOKUP(V74,[1]enrolment!$B$10:$S$78,18,FALSE) -> 12.5 | AB74: =VLOOKUP(V74,[1]enrolment!$B$10:$T$78,19,FALSE) -> 0 | AC74: =VLOOKUP(V74,[1]enrolment!$B$10:$U$78,20,FALSE) -> 0 | AD74: 1961 | AE74: =VLOOKUP(AD74,[1]Funding!$B$10:$N$78,13,FALSE) -> 80913 | AF74: =VLOOKUP(AD74,[1]Funding!$B$10:$S$78,18,FALSE) -> 0 | AG74: =VLOOKUP(AD74,[1]Funding!$B$10:$S$78,14,FALSE) -> 750 | AH74: =VLOOKUP(AD74,[1]Funding!$B$10:$AE$78,30,FALSE) -> 0 | AI74: 81663 | AJ74: =VLOOKUP(AD74,[1]Funding!$B$10:$AF$78,31,FALSE) -> 81663 | AK74: 0
I76: TOTAL ALL INDEPENDENT SCHOOLS | J76: =SUM(J5:J74) -> 1210 | K76: 15183.8 | L76: 106.2 | M76: 30.53762423 | N76: 97723934 | O76: 1650525 | P76: 911028 | Q76: 0 | R76: 100285487 | S76: 0 | Z76: =SUM(Z5:Z74) -> 1210 | AA76: =SUM(AA5:AA74) -> 15183.8 | AB76: =SUM(AB5:AB74) -> 106.2 | AC76: =SUM(AC5:AC74) -> 30.53762423 | AE76: =SUM(AE5:AE74) -> 97723934 | AF76: =SUM(AF3:AF74) -> 1650525 | AG76: =[1]Funding!$O77 -> 18120 | AH76: =SUM(AH5:AH74) -> 0 | AI76: 100285487 | AJ76: =SUM(AJ5:AJ74) -> 100285487 | AK76: =AJ76-AI76 -> 0
J78: =+J1 -> Kdg | K78: total Eligible Enrolment | L78: Level 2 | M78: Level3 | N78: Preliminar I & S Grant | O78: Total Special needs Col S | P78: Total Curricular materials | Q78: Total adjustments | R78: TOTAL GRANT PAID
F79: =+F3 -> Formulas => | G79: =+G3 -> 66 | H79: =+H3 -> 2338 | I79: =+I3 -> Western Canada Hockey Academy | J79: =IF($G$79=1,0,SUMIF($G$4:$G$74,$G$79,J4:J74)) -> 0 | K79: 0 | L79: 0 | M79: 0 | N79: 0 | O79: 0 | P79: 0 | Q79: 0 | R79: 0
I81: W:\Edusfb\Independent\Funding\IS PAYMENTS\YYYY-YYYY | J81: enrolment tab | N81: Funding Tab
